{"text_format":"1","workbook":"xlsx","n_sheets":3,"sheets":["申請書","様式第６号の３(2)　（裏面）","添付"],"not_rendered":{"charts":0,"images":3,"macros":1,"external_links":0,"defined_names":2,"comments":0,"pivot_tables":0},"unopened":[],"bounds":{"document_bytes":16777216,"sheet_cells":100000,"rows_first":2000,"rows_last":500,"rows_between":2000,"halvings":0,"cell_chars":16384,"cell_head_chars":4096},"cells_cut":0,"cells_raw":0,"read":"whole","date_system":"1900"}

{"sheet":"申請書","index":0,"n_rows":155,"n_cols":134,"rows_kept":155,"cut":false,"hidden":false,"merged":[[147,53,147,54],[147,56,147,63],[29,77,29,78],[29,87,29,88],[143,12,143,19],[143,22,143,29],[143,30,143,31],[143,33,143,41],[143,44,143,52],[143,53,143,54],[143,56,143,63],[144,12,144,19],[144,22,144,29],[144,30,144,31],[144,33,144,41],[144,44,144,52],[144,53,144,54],[144,56,144,63],[140,12,140,19],[140,22,140,29],[140,30,140,31],[140,33,140,41],[140,44,140,52],[140,53,140,54],[140,56,140,63],[141,12,141,19],[141,22,141,29],[141,30,141,31],[141,33,141,41],[141,44,141,52],[141,53,141,54],[141,56,141,63],[138,33,138,41],[138,44,138,52],[138,53,138,54],[138,56,138,63],[139,12,139,19],[139,22,139,29],[139,30,139,31],[139,33,139,41],[139,44,139,52],[139,53,139,54],[139,56,139,63],[136,33,136,41],[136,44,136,52],[136,53,136,54],[136,56,136,63],[137,12,137,19],[137,22,137,29],[137,30,137,31],[137,33,137,41],[137,44,137,52],[137,53,137,54],[137,56,137,63],[128,56,128,63],[129,12,129,19],[129,22,129,29],[129,30,129,31],[129,33,129,41],[129,44,129,52],[129,53,129,54],[129,56,129,63],[130,12,130,19],[130,22,130,29],[130,30,130,31],[130,33,130,41],[130,44,130,52],[130,53,130,54],[130,56,130,63],[122,44,122,52],[122,53,122,54],[122,56,122,63],[125,44,125,52],[125,53,125,54],[125,56,125,63],[126,12,126,19],[126,22,126,29],[126,30,126,31],[126,33,126,41],[126,44,126,52],[126,53,126,54],[126,56,126,63],[117,53,117,54],[117,56,117,63],[118,12,118,19],[118,22,118,29],[118,30,118,31],[118,33,118,41],[118,44,118,52],[118,53,118,54],[118,56,118,63],[110,44,110,52],[110,53,110,54],[110,56,110,63],[113,44,113,52],[113,53,113,54],[113,56,113,63],[114,12,114,19],[114,22,114,29],[114,30,114,31],[114,33,114,41],[114,44,114,52],[114,53,114,54],[114,56,114,63],[103,22,103,29],[103,30,103,31],[103,33,103,41],[103,44,103,52],[103,53,103,54],[103,56,103,63],[104,12,104,19],[104,22,104,29],[104,30,104,31],[104,33,104,41],[104,44,104,52],[104,53,104,54],[104,56,104,63],[89,36,89,38],[89,40,89,42],[89,43,89,45],[90,11,91,20],[90,21,91,31],[90,32,91,42],[90,43,91,54],[92,11,95,20],[92,21,95,31],[92,32,95,42],[92,43,95,54],[127,53,127,54],[127,56,127,63],[114,3,115,10],[115,12,115,19],[115,22,115,29],[115,30,115,31],[115,33,115,41],[115,44,115,52],[115,53,115,54],[115,56,115,63],[116,3,117,10],[116,12,116,19],[116,22,116,29],[116,30,116,31],[116,33,116,41],[116,44,116,52],[116,53,116,54],[119,3,119,10],[116,56,116,63],[117,12,117,19],[117,22,117,29],[117,30,117,31],[117,33,117,41],[117,44,117,52],[66,3,67,10],[72,20,72,46],[72,47,73,54],[72,55,73,55],[72,56,73,64],[73,20,73,46],[56,3,57,10],[56,12,56,18],[56,21,56,27],[56,30,56,36],[56,39,56,45],[56,48,56,54],[56,57,56,63],[57,12,57,18],[57,21,57,27],[57,30,57,36],[57,39,57,45],[57,48,57,54],[57,57,57,63],[58,3,59,10],[58,48,58,54],[60,21,60,27],[60,30,60,36],[60,39,60,45],[44,3,45,10],[44,12,44,18],[44,21,44,27],[44,30,44,36],[44,39,44,45],[44,48,44,54],[44,57,44,63],[45,12,45,18],[45,21,45,27],[45,30,45,36],[45,39,45,45],[45,48,45,54],[45,57,45,63],[80,1,81,4],[80,5,80,14],[146,1,146,10],[147,1,147,10],[146,12,146,19],[146,22,146,29],[146,30,146,31],[146,33,146,41],[146,44,146,52],[147,12,147,19],[147,22,147,29],[147,30,147,31],[126,3,127,10],[127,12,127,19],[127,22,127,29],[127,30,127,31],[127,33,127,41],[127,44,127,52],[136,3,137,10],[89,19,89,20],[89,21,89,23],[89,25,89,28],[89,30,89,31],[89,32,89,34],[78,1,78,10],[78,12,78,18],[78,21,78,27],[78,30,78,36],[78,39,78,45],[78,48,78,54],[78,57,78,63],[79,1,79,10],[79,12,79,18],[79,21,79,27],[79,30,79,36],[79,39,79,45],[79,48,79,54],[79,57,79,63],[76,1,76,10],[76,12,76,18],[76,21,76,27],[76,30,76,36],[76,39,76,45],[76,48,76,54],[76,57,76,63],[77,1,77,10],[77,12,77,18],[77,21,77,27],[77,30,77,36],[77,39,77,45],[77,48,77,54],[77,57,77,63],[17,2,17,5],[17,6,17,20],[17,21,17,64],[8,1,17,1],[74,1,74,64],[75,1,75,10],[75,12,75,18],[75,21,75,27],[75,30,75,36],[75,39,75,45],[75,48,75,54],[75,57,75,63],[67,39,67,45],[67,48,67,54],[67,57,67,63],[18,2,18,10],[18,11,18,19],[18,20,18,64],[19,2,19,10],[19,29,19,30],[19,32,19,35],[20,2,21,10],[20,20,21,28],[20,29,21,37],[29,93,29,94],[66,12,66,18],[66,21,66,27],[66,30,66,36],[66,39,66,45],[66,48,66,54],[66,57,66,63],[67,12,67,18],[67,21,67,27],[67,30,67,36],[29,89,29,90],[29,91,29,92],[34,12,34,18],[35,30,35,36],[35,39,35,45],[35,48,35,54],[47,57,47,63],[46,57,46,63],[48,57,48,63],[59,57,59,63],[58,12,58,18],[58,21,58,27],[58,30,58,36],[58,39,58,45],[80,15,80,29],[80,49,80,64],[81,5,81,14],[81,15,81,29],[81,34,81,48],[81,49,81,64],[26,56,29,64],[34,30,34,36],[34,39,34,45],[34,48,34,54],[32,48,32,54],[32,57,32,63],[33,57,33,63],[34,57,34,63],[35,3,35,10],[35,12,35,18],[35,21,35,27],[19,11,29,19],[19,20,19,21],[19,23,19,26],[20,38,21,46],[22,29,25,37],[22,38,25,46],[19,56,19,57],[7,52,7,54],[7,55,7,56],[7,57,7,64],[8,2,9,5],[8,6,9,24],[8,25,16,29],[16,2,16,5],[16,6,16,24],[8,30,8,32],[8,34,8,37],[8,39,8,43],[8,45,8,47],[9,30,15,47],[10,2,12,5],[10,6,12,24],[13,2,13,5],[13,6,13,24],[14,2,15,5],[14,6,15,24],[16,30,16,32],[16,33,16,36],[16,38,16,41],[16,43,16,46],[0,15,0,21],[1,15,1,21],[4,15,6,47],[4,52,4,64],[5,1,6,3],[5,4,6,4],[5,5,6,9],[5,10,6,10],[5,11,6,11],[19,59,19,62],[20,47,21,55],[20,56,21,64],[19,38,19,39],[19,41,19,44],[19,47,19,48],[19,50,19,53],[26,47,29,55],[22,2,25,10],[22,20,25,28],[80,30,81,33],[80,34,80,48],[32,21,32,27],[32,30,32,36],[32,39,32,45],[82,1,82,64],[18,1,73,1],[22,47,25,55],[22,56,25,64],[26,2,29,10],[26,20,29,28],[26,29,29,37],[26,38,29,46],[32,3,32,10],[32,12,32,18],[33,3,33,10],[33,12,33,18],[33,21,33,27],[33,30,33,36],[33,39,33,45],[33,48,33,54],[34,21,34,27],[35,57,35,63],[34,3,34,10],[38,3,39,10],[38,12,38,18],[38,21,38,27],[38,30,38,36],[38,39,38,45],[38,48,38,54],[38,57,38,63],[39,12,39,18],[39,21,39,27],[39,30,39,36],[39,39,39,45],[39,48,39,54],[39,57,39,63],[40,3,41,10],[40,12,40,18],[40,21,40,27],[40,30,40,36],[40,39,40,45],[40,48,40,54],[40,57,40,63],[41,12,41,18],[41,21,41,27],[41,30,41,36],[41,39,41,45],[41,48,41,54],[41,57,41,63],[42,3,43,10],[42,12,42,18],[42,21,42,27],[42,30,42,36],[42,39,42,45],[42,48,42,54],[42,57,42,63],[43,12,43,18],[43,21,43,27],[43,30,43,36],[43,39,43,45],[43,48,43,54],[43,57,43,63],[46,3,47,10],[46,12,46,18],[46,21,46,27],[46,30,46,36],[46,39,46,45],[46,48,46,54],[48,21,48,27],[48,30,48,36],[48,39,48,45],[48,48,48,54],[47,12,47,18],[47,21,47,27],[47,30,47,36],[47,39,47,45],[47,48,47,54],[49,3,49,10],[49,12,49,18],[49,21,49,27],[49,30,49,36],[49,39,49,45],[49,48,49,54],[49,57,49,63],[48,3,48,10],[48,12,48,18],[50,3,51,10],[50,12,50,18],[50,21,50,27],[50,30,50,36],[50,39,50,45],[50,48,50,54],[50,57,50,63],[51,12,51,18],[51,21,51,27],[51,30,51,36],[51,39,51,45],[51,48,51,54],[51,57,51,63],[52,3,53,10],[52,12,52,18],[52,21,52,27],[52,30,52,36],[52,39,52,45],[52,48,52,54],[52,57,52,63],[53,12,53,18],[53,21,53,27],[53,30,53,36],[53,39,53,45],[53,48,53,54],[53,57,53,63],[54,3,55,10],[54,12,54,18],[54,21,54,27],[54,30,54,36],[54,39,54,45],[54,48,54,54],[54,57,54,63],[55,12,55,18],[55,21,55,27],[55,30,55,36],[55,39,55,45],[55,48,55,54],[55,57,55,63],[60,48,60,54],[58,57,58,63],[59,12,59,18],[59,21,59,27],[59,30,59,36],[59,39,59,45],[59,48,59,54],[60,57,60,63],[61,3,61,10],[61,12,61,18],[61,21,61,27],[61,30,61,36],[61,39,61,45],[61,48,61,54],[61,57,61,63],[60,3,60,10],[60,12,60,18],[62,3,63,10],[62,12,62,18],[62,21,62,27],[62,30,62,36],[62,39,62,45],[62,48,62,54],[62,57,62,63],[63,12,63,18],[63,21,63,27],[63,30,63,36],[63,39,63,45],[63,48,63,54],[63,57,63,63],[64,3,65,10],[64,12,64,18],[64,21,64,27],[64,30,64,36],[64,39,64,45],[64,48,64,54],[64,57,64,63],[65,12,65,18],[65,21,65,27],[65,30,65,36],[65,39,65,45],[65,48,65,54],[65,57,65,63],[70,39,70,45],[70,48,70,54],[68,57,68,63],[69,3,69,10],[69,12,69,18],[69,21,69,27],[69,30,69,36],[69,39,69,45],[70,57,70,63],[72,2,72,10],[72,11,73,18],[72,19,73,19],[73,2,73,10],[29,69,29,70],[71,2,71,10],[71,12,71,18],[71,21,71,27],[71,30,71,36],[71,39,71,45],[71,48,71,54],[71,57,71,63],[70,2,70,10],[70,12,70,18],[69,48,69,54],[69,57,69,63],[68,3,68,10],[68,12,68,18],[68,21,68,27],[68,30,68,36],[68,39,68,45],[68,48,68,54],[70,21,70,27],[70,30,70,36],[29,71,29,72],[29,73,29,74],[29,75,29,76],[29,79,29,80],[29,81,29,82],[29,83,29,84],[29,85,29,86],[84,15,86,47],[88,1,141,1],[88,2,88,10],[88,11,88,64],[89,2,89,10],[89,11,89,12],[89,14,89,17],[90,2,91,10],[89,47,89,50],[89,52,89,54],[89,55,89,56],[89,58,89,61],[89,63,89,64],[90,55,91,64],[92,55,95,64],[96,2,99,10],[92,2,95,10],[96,55,99,64],[102,3,102,10],[103,3,103,10],[102,33,102,41],[102,44,102,52],[102,53,102,54],[102,56,102,63],[103,12,103,19],[105,3,105,10],[104,3,104,10],[105,12,105,19],[105,22,105,29],[105,30,105,31],[105,33,105,41],[105,44,105,52],[105,53,105,54],[105,56,105,63],[96,11,99,20],[96,21,99,31],[96,32,99,42],[96,43,99,54],[102,12,102,19],[102,22,102,29],[102,30,102,31],[108,3,109,10],[108,12,108,19],[108,22,108,29],[108,30,108,31],[108,33,108,41],[108,44,108,52],[108,53,108,54],[108,56,108,63],[109,12,109,19],[109,22,109,29],[109,30,109,31],[109,33,109,41],[109,44,109,52],[109,53,109,54],[109,56,109,63],[110,3,111,10],[111,12,111,19],[111,22,111,29],[111,30,111,31],[111,33,111,41],[111,44,111,52],[111,53,111,54],[111,56,111,63],[112,3,113,10],[112,12,112,19],[112,22,112,29],[112,30,112,31],[112,33,112,41],[112,44,112,52],[112,53,112,54],[112,56,112,63],[113,12,113,19],[113,22,113,29],[113,30,113,31],[113,33,113,41],[110,12,110,19],[110,22,110,29],[110,30,110,31],[110,33,110,41],[118,3,118,10],[119,12,119,19],[119,22,119,29],[119,30,119,31],[119,33,119,41],[119,44,119,52],[119,53,119,54],[119,56,119,63],[120,3,121,10],[120,12,120,19],[120,22,120,29],[120,30,120,31],[120,33,120,41],[120,44,120,52],[120,53,120,54],[120,56,120,63],[121,12,121,19],[121,22,121,29],[121,30,121,31],[121,33,121,41],[121,44,121,52],[121,53,121,54],[121,56,121,63],[122,3,123,10],[123,12,123,19],[123,22,123,29],[123,30,123,31],[123,33,123,41],[123,44,123,52],[123,53,123,54],[123,56,123,63],[124,3,125,10],[124,12,124,19],[124,22,124,29],[124,30,124,31],[124,33,124,41],[124,44,124,52],[124,53,124,54],[124,56,124,63],[125,12,125,19],[125,22,125,29],[125,30,125,31],[125,33,125,41],[122,12,122,19],[122,22,122,29],[122,30,122,31],[122,33,122,41],[128,3,129,10],[128,12,128,19],[128,22,128,29],[128,30,128,31],[128,33,128,41],[128,44,128,52],[128,53,128,54],[131,3,131,10],[130,3,130,10],[131,12,131,19],[131,22,131,29],[131,30,131,31],[131,33,131,41],[131,44,131,52],[131,53,131,54],[131,56,131,63],[132,3,133,10],[132,12,132,19],[132,22,132,29],[132,30,132,31],[132,33,132,41],[132,44,132,52],[132,53,132,54],[132,56,132,63],[133,12,133,19],[133,22,133,29],[133,30,133,31],[133,33,133,41],[133,44,133,52],[133,53,133,54],[133,56,133,63],[134,3,135,10],[135,12,135,19],[135,22,135,29],[135,30,135,31],[135,33,135,41],[135,44,135,52],[135,53,135,54],[135,56,135,63],[140,2,140,10],[138,3,138,10],[139,3,139,10],[138,12,138,19],[138,22,138,29],[138,30,138,31],[134,12,134,19],[134,22,134,29],[134,30,134,31],[134,33,134,41],[134,44,134,52],[134,53,134,54],[134,56,134,63],[136,12,136,19],[136,22,136,29],[136,30,136,31],[148,2,148,10],[148,11,149,18],[148,19,149,19],[148,20,151,64],[149,2,149,10],[150,2,151,10],[150,11,151,18],[150,19,151,19],[141,2,141,10],[142,1,142,64],[143,1,143,10],[144,1,144,10],[145,1,145,10],[145,12,145,19],[145,22,145,29],[145,30,145,31],[145,33,145,41],[145,44,145,52],[145,53,145,54],[145,56,145,63],[146,53,146,54],[146,56,146,63],[147,33,147,41],[147,44,147,52]]}
[null,null,null,null,null,null,null,null,null,null,null,null,null,null,null,"総ページ数",null,null,null,null,null,null,null,null,null,null,null,null,null,null,null,null,null,null,null,null,null,null,null,null,null,null,null,null,null,null,null,null,null,null,null,null,null,null,null,null,null,null,null,null,null,null,null,null,null,null,"様式ID","A-250170-102_1",null,null,null,null,null,null,null,null,null,null,null,null,null,null,null,null,null,null,null,null,null,null,null,null,null,null,null,null,null,null,null,null,null,null,null,null,null,null,null,null,null,null,null,null,null,"適用事業所番号","年度","安定所名","事業主","郵便番号","住所","電話番号","産業中分類","事業所数","合計","事業所1","事業所2","事業所3","事業所4","事業所5","推進者","記入者"]
[null,null,null,null,null,null,null,null,null,null,null,null,null,null,null,2,null,null,null,null,null,null,null,null,null,null,null,null,null,null,null,null,null,null,null,null,null,null,null,null,null,null,null,null,null,null,null,null,null,null,null,null,null,null,null,null,null,null,null,null,null,null,null,null,null,null,"年度","06年度01版",null,null,null,null,null,null,null,null,null,null,null,null,null,null,null,null,null,null,null,null,null,null,null,null,null,null,null,null,null,null,null,null,null,null,null,null,null,null,null,null,null,null,null,null,null,"A","A","A","A","A","A","A","A","A","A","A","A","A","A","A","A","A"]
[null,null,null,null,null,null,null,null,null,null,null,null,null,null,null,null,null,null,null,null,null,null,null,null,null,null,null,null,null,"申請前には必ず「検査」ボタンをクリックし、入力漏れや誤りがないか検査してください。",null,null,null,null,null,null,null,null,null,null,null,null,null,null,null,null,null,null,null,null,null,null,null,null,null,null,null,null,null,null,null,null,null,null,null,null,"検査実施フラグ","OF",null,null,null,null,null,null,null,null,null,null,null,null,null,null,null,null,null,null,null,null,null,null,null,null,null,null,null,null,null,null,null,null,null,null,null,null,null,null,null,null,null,null,null,null,null,"A","A","A","A","A","A","A","A","A","A","A","A","A","A","A","A","A"]
[null,null,null,null,null,null,null,null,null,null,null,null,null,null,null,null,null,null,null,null,null,null,null,null,null,null,null,null,null,null,null,null,null,null,null,null,null,null,null,null,null,null,null,null,null,null,null,null,null,null,null,null,null,null,null,null,null,null,null,null,null,null,null,null,null,"37_01_01_010",null,null,null,null,null,null,null,null,null,null,null,null,null,null,null,null,null,null,null,null,null,null,null,null,null,null,null,null,null,null,null,null,null,null,null,null,null,null,null,null,null,null,null,null,null,null,null,"A","A","A","A","A","A","A","A","A","A","A","A","A","A","A","A","A"]
[null,"様式第6号の３(2)（第４条関係）",null,null,null,null,null,null,null,null,null,null,null,null,null,"障害者雇用状況報告書\n（法第45条の２の認定を受けた事業主用、グループ全体）",null,null,null,null,null,null,null,null,null,null,null,null,null,null,null,null,null,null,null,null,null,null,null,null,null,null,null,null,null,null,null,null,null,null,null,null,"（日本産業規格Ａ列４）",null,null,null,null,null,null,null,null,null,null,null,null,null,null,null,null,null,null,null,null,null,null,null,null,null,null,null,null,null,null,null,null,null,null,null,null,null,null,null,null,null,null,null,null,null,null,null,null,null,null,null,null,null,null,null,null,null,null,null,null,"A","A","A","A","A","A","A","A","A","A","A","A","A","A","A","A","A"]
[null,null,null,null,"―",null,null,null,null,null,"―",null,null,null,null,null,null,null,null,null,null,null,null,null,null,null,null,null,null,null,null,null,null,null,null,null,null,null,null,null,null,null,null,null,null,null,null,null,null,null,null,null,null,null,null,null,null,null,null,null,null,null,null,null,null,null,null,null,null,null,null,null,null,null,null,null,null,null,null,null,null,null,null,null,null,null,null,null,null,null,null,null,null,null,null,null,null,null,null,null,null,null,null,null,null,null,null,null,null,null,null,null,null,"A","A","A","A","A","A","A","A","A","A","A","A","A","A","A","A","A"]
[null,null,null,null,null,null,null,null,null,null,null,null,null,null,null,null,null,null,null,null,null,null,null,null,null,null,null,null,null,null,null,null,null,null,null,null,null,null,null,null,null,null,null,null,null,null,null,null,null,null,null,null,null,null,null,null,null,null,null,null,null,null,null,null,null,null,null,null,null,null,null,null,null,null,null,null,null,null,null,null,null,null,null,null,null,null,null,null,null,null,null,null,null,null,null,null,null,null,null,null,null,null,null,null,null,null,null,null,null,null,null,null,null,"A","A","A","A","A","A","A","A","A","A","A","A","A","A","A","A","A"]
[null,null,null,null,null,null,null,null,null,null,null,null,null,null,null,null,null,null,null,null,null,null,null,null,null,null,null,null,null,null,null,null,null,null,null,null,null,null,null,null,null,null,null,null,null,null,null,null,null,null,null,null,"令和",null,null,7,null,"年 6月 1日現在  ",null,null,null,null,null,null,null,null,null,null,null,null,null,null,null,null,null,null,null,null,null,null,null,null,null,null,null,null,null,null,null,null,null,null,null,null,null,null,null,null,null,null,null,null,null,null,null,null,null,null,null,null,null,null,null,"A","A","A","A","A","A","A","A","A","A","A","A","A","A","A","A","A"]
[null,"Ａ　親事業主","(ふりがな)",null,null,null,null,null,null,null,null,null,null,null,null,null,null,null,null,null,null,null,null,null,null,"(3)主たる\n　事務所\n　の所在地",null,null,null,null,"〒",null,null,null,null,null,null,null,"―",null,null,null,null,null,null,null,null,null,null,null,null,null,null,null,null,null,null,null,null,null,null,null,null,null,null,null,null,null,null,null,null,null,null,null,null,null,null,null,null,null,null,null,null,null,null,null,null,null,null,null,null,null,null,null,null,null,null,null,null,null,null,null,null,null,null,null,null,null,null,null,null,null,null,"A","A","A","A","A","A","A","A","A","A","A","A","A","A","A","A","A"]
[null,null,null,null,null,null,null,null,null,null,null,null,null,null,null,null,null,null,null,null,null,null,null,null,null,null,null,null,null,null,null,null,null,null,null,null,null,null,null,null,null,null,null,null,null,null,null,null,null,null,null,null,null,null,null,null,null,null,null,null,null,null,null,null,null,null,null,null,null,null,null,null,null,null,null,null,null,null,null,null,null,null,null,null,null,null,null,null,null,null,null,null,null,null,null,null,null,null,null,null,null,null,null,null,null,null,null,null,null,null,null,null,null,{"$f":"B6&\"\"","v":""},{"$f":"BD8&\"\"","v":"7"},null,{"$f":"G9&\"\"","v":""},{"$f":"AI9&\"\"","v":""},{"$f":"AE10&\"\"","v":""},{"$f":"AH17&\"\"","v":""},null,null,null,null,null,null,null,null,{"$f":"F82&\"\"","v":""},{"$f":"AI82&\"\"","v":""}]
[null,null,"(1)法人名称",null,null,null,null,null,null,null,null,null,null,null,null,null,null,null,null,null,null,null,null,null,null,null,null,null,null,null,null,null,null,null,null,null,null,null,null,null,null,null,null,null,null,null,null,null,null,null,null,null,null,null,null,null,null,null,null,null,null,null,null,null,null,null,null,null,null,null,null,null,null,null,null,null,null,null,null,null,null,null,null,null,null,null,null,null,null,null,null,null,null,null,null,null,null,null,null,null,null,null,null,null,null,null,null,null,null,null,null,null,null,{"$f":"F6&\"\"","v":""},null,null,{"$f":"G11&\"\"","v":""},{"$f":"AN9&\"\"","v":""},null,{"$f":"AM17&\"\"","v":""},null,null,null,null,null,null,null,null,{"$f":"P82&\"\"","v":""},{"$f":"AX82&\"\"","v":""}]
[null,null,null,null,null,null,null,null,null,null,null,null,null,null,null,null,null,null,null,null,null,null,null,null,null,null,null,null,null,null,null,null,null,null,null,null,null,null,null,null,null,null,null,null,null,null,null,null,null,null,null,null,null,null,null,null,null,null,null,null,null,null,null,null,null,null,null,null,null,null,null,null,null,null,null,null,null,null,null,null,null,null,null,null,null,null,null,null,null,null,null,null,null,null,null,null,null,null,null,null,null,null,null,null,null,null,null,null,null,null,null,null,null,{"$f":"L6&\"\"","v":""},null,null,{"$f":"G14&\"\"","v":""},null,null,{"$f":"AR17&\"\"","v":""}]
[null,null,null,null,null,null,null,null,null,null,null,null,null,null,null,null,null,null,null,null,null,null,null,null,null,null,null,null,null,null,null,null,null,null,null,null,null,null,null,null,null,null,null,null,null,null,null,null,null,null,null,null,null,null,null,null,null,null,null,null,null,null,null,null,null,null,null,null,null,null,null,null,null,null,null,null,null,null,null,null,null,null,null,null,null,null,null,null,null,null,null,null,null,null,null,null,null,null,null,null,null,null,null,null,null,null,null,null,null,null,null,null,null,null,null,null,{"$f":"G15&\"\"","v":""}]
[null,null,"(ふりがな)"]
[null,null,"(2)氏名又は\n   代表者氏名"]
[]
[null,null,null,null,null,null,null,null,null,null,null,null,null,null,null,null,null,null,null,null,null,null,null,null,null,null,null,null,null,null,"(TEL",null,null,null,null,null,null,"―",null,null,null,null,"―",null,null,null,null,")"]
[null,null,"(4)法人番号"]
[null,"　Ｂ　雇用の状況","区     分",null,null,null,null,null,null,null,null,"合　計",null,null,null,null,null,null,null,null,"Ｃ　事　業　主　ご　と　の　内　訳"]
[null,null,"(5)適用事業所番号",null,null,null,null,null,null,null,null,null,null,null,null,null,null,null,null,null,null,null,"―",null,null,null,null,"―",null,null,null,"―",null,null,null,null,"―",null,null,null,"―",null,null,null,null,"―",null,null,null,"―",null,null,null,null,"―",null,null,null,"―",null,null,null,null,"―",null,null,null,null,null,null,null,null,null,null,null,null,null,null,null,null,null,null,null,null,null,null,null,null,null,null,null,null,null,null,null,null,null,null,null,null,null,null,null,null,null,null,null,null,null,null,null,null,null,null,null,null,null,null,null,null,null,null,null,{"$f":"U20&\"\"","v":""},{"$f":"AD20&\"\"","v":""},{"$f":"AM20&\"\"","v":""},{"$f":"AV20&\"\"","v":""},{"$f":"BE20&\"\"","v":""}]
[null,null,"(6)親事業主・関係子会社の別",null,null,null,null,null,null,null,null,null,null,null,null,null,null,null,null,null,null,null,null,null,null,null,null,null,null,null,null,null,null,null,null,null,null,null,null,null,null,null,null,null,null,null,null,null,null,null,null,null,null,null,null,null,null,null,null,null,null,null,null,null,null,null,null,null,null,null,null,null,null,null,null,null,null,null,null,null,null,null,null,null,null,null,null,null,null,null,null,null,null,null,null,null,null,null,null,null,null,null,null,null,null,null,null,null,null,null,null,null,null,null,null,null,null,null,null,null,null,null,null,{"$f":"X20&\"\"","v":""},{"$f":"AG20&\"\"","v":""},{"$f":"AP20&\"\"","v":""},{"$f":"AY20&\"\"","v":""},{"$f":"BH20&\"\"","v":""}]
[null,null,null,null,null,null,null,null,null,null,null,null,null,null,null,null,null,null,null,null,null,null,null,null,null,null,null,null,null,null,null,null,null,null,null,null,null,null,null,null,null,null,null,null,null,null,null,null,null,null,null,null,null,null,null,null,null,null,null,null,null,null,null,null,null,null,null,null,null,null,null,null,null,null,null,null,null,null,null,null,null,null,null,null,null,null,null,null,null,null,null,null,null,null,null,null,null,null,null,null,null,null,null,null,null,null,null,null,null,null,null,null,null,null,null,null,null,null,null,null,null,null,null,{"$f":"AC20&\"\"","v":""},{"$f":"AL20&\"\"","v":""},{"$f":"AU20&\"\"","v":""},{"$f":"BD20&\"\"","v":""},{"$f":"BM20&\"\"","v":""}]
[null,null,"(7)名称及び代表者の氏名",null,null,null,null,null,null,null,null,null,null,null,null,null,null,null,null,null,null,null,null,null,null,null,null,null,null,null,null,null,null,null,null,null,null,null,null,null,null,null,null,null,null,null,null,null,null,null,null,null,null,null,null,null,null,null,null,null,null,null,null,null,null,null,null,null,null,null,null,null,null,null,null,null,null,null,null,null,null,null,null,null,null,null,null,null,null,null,null,null,null,null,null,null,null,null,null,null,null,null,null,null,null,null,null,null,null,null,null,null,null,null,null,null,null,null,null,null,null,null,null,{"$f":"U21&\"\"","v":""},{"$f":"AD21&\"\"","v":""},{"$f":"AM21&\"\"","v":""},{"$f":"AV21&\"\"","v":""},{"$f":"BE21&\"\"","v":""}]
[]
[null,null,null,null,null,null,null,null,null,null,null,null,null,null,null,null,null,null,null,null,null,null,null,null,null,null,null,null,null,null,null,null,null,null,null,null,null,null,null,null,null,null,null,null,null,null,null,null,null,null,null,null,null,null,null,null,null,null,null,null,null,null,null,null,null,null,null,null,null,null,null,null,null,null,null,null,null,null,null,null,null,null,null,null,null,null,null,null,null,null,null,null,null,null,null,null,null,null,null,null,null,null,null,null,null,null,null,null,null,null,null,null,null,null,null,null,null,null,null,null,null,null,null,{"$f":"U23&\"\"","v":""},{"$f":"AD23&\"\"","v":""},{"$f":"AM23&\"\"","v":""},{"$f":"AV23&\"\"","v":""},{"$f":"BE23&\"\"","v":""}]
[]
[null,null,"(8)主たる事務所の所在地",null,null,null,null,null,null,null,null,null,null,null,null,null,null,null,null,null,null,null,null,null,null,null,null,null,null,null,null,null,null,null,null,null,null,null,null,null,null,null,null,null,null,null,null,null,null,null,null,null,null,null,null,null,null,null,null,null,null,null,null,null,null,null,null,null,null,null,null,null,null,null,null,null,null,null,null,null,null,null,null,null,null,null,null,null,null,null,null,null,null,null,null,null,null,null,null,null,null,null,null,null,null,null,null,null,null,null,null,null,null,null,null,null,null,null,null,null,null,null,null,{"$f":"U27&\"\"","v":""},{"$f":"AD27&\"\"","v":""},{"$f":"AM27&\"\"","v":""},{"$f":"AV27&\"\"","v":""},{"$f":"BE27&\"\"","v":""}]
[]
[]
[null,null,null,null,null,null,null,null,null,null,null,null,null,null,null,null,null,null,null,null,null,null,null,null,null,null,null,null,null,null,null,null,null,null,null,null,null,null,null,null,null,null,null,null,null,null,null,null,null,null,null,null,null,null,null,null,null,null,null,null,null,null,null,null,null,null,"(ｲ)常用雇用労働者の数","(ﾛ)短時間労働者の数","(ﾆ)法定雇用障害者の算定の基礎と なる労働者の数","(ﾎ)重度身体障害者の数",null,"(ﾍ)重度身体障害者以外の身体障害者の数",null,"(ﾄ)重度身体障害者である短時間労働者の数",null,"(ﾁ)重度身体障害者以外の身体障害者である短時間労働者の数",null,"(ﾘ)重度身体障害者である特定短時間労働者の数",null,"(ﾙ)重度知的障害者の数",null,"(ｦ)重度知的障害者以外の知的障害者の数",null,"(ﾜ)重度知的障害者である短時間労働者の数",null,"(ｶ)重度知的障害者以外の知的障害者である短時間労働者の数",null,"(ﾖ)重度知的障害者である特定短時間労働者の数",null,"(ﾚ)精神障害者の数",null,"(ｿ)精神障害者である短時間労働者の数",null,"(ﾂ)精神障害者である特定短時間労働者の数",null,"視覚障害者（第１号に該当する者）","聴覚又は平衡機能障害者\n（第２号に該当する者）","音声・言語・そしゃく機能障害者\n（第３号に該当する者）","肢体不自由者（第４号に該当する者）","内部障害（第５号に該当する者）"]
[null,null,"(9)常用雇用労働者の数",null,null,null,null,null,null,null,null,null,null,null,null,null,null,null,null,null,null,null,null,null,null,null,null,null,null,null,null,null,null,null,null,null,null,null,null,null,null,null,null,null,null,null,null,null,null,null,null,null,null,null,null,null,null,null,null,null,null,null,null,null,null,null,{"$f":"SUM(BO34:BO72011)","v":0},0,0,0,0,0,0,0,0,0,0,0,0,0,0,0,0,0,0,0,0,0,0,0,0,0,0,0,0,0,0,0,0,0]
[]
[null,null,null,"(ｲ)常用雇用労働者の数",null,null,null,null,null,null,null,null,{"$f":"V33+AE33+AN33+AW33+BF33+BO31","v":0},null,null,null,null,null,null,"人",null,null,null,null,null,null,null,null,"人",null,null,null,null,null,null,null,null,"人",null,null,null,null,null,null,null,null,"人",null,null,null,null,null,null,null,null,"人",null,null,null,null,null,null,null,null,"人",null,null,null,null,null,null,null,null,null,null,null,null,null,null,null,null,null,null,null,null,null,null,null,null,null,null,null,null,null,null,null,null,null,null,null,null,null,null,null,null,null,null,null,null,null,null,null,null,null,null,null,null,null,null,null,null,null,null,{"$f":"M33&\"\"","v":"0"},{"$f":"V33&\"\"","v":""},{"$f":"AE33&\"\"","v":""},{"$f":"AN33&\"\"","v":""},{"$f":"AW33&\"\"","v":""},{"$f":"BF33&\"\"","v":""}]
[null,null,null,"(ﾛ)短時間労働者の数",null,null,null,null,null,null,null,null,{"$f":"V34+AE34+AN34+AW34+BF34+BP31","v":0},null,null,null,null,null,null,"人",null,null,null,null,null,null,null,null,"人",null,null,null,null,null,null,null,null,"人",null,null,null,null,null,null,null,null,"人",null,null,null,null,null,null,null,null,"人",null,null,null,null,null,null,null,null,"人",null,null,null,null,null,null,null,null,null,null,null,null,null,null,null,null,null,null,null,null,null,null,null,null,null,null,null,null,null,null,null,null,null,null,null,null,null,null,null,null,null,null,null,null,null,null,null,null,null,null,null,null,null,null,null,null,null,null,{"$f":"M34&\"\"","v":"0"},{"$f":"V34&\"\"","v":""},{"$f":"AE34&\"\"","v":""},{"$f":"AN34&\"\"","v":""},{"$f":"AW34&\"\"","v":""},{"$f":"BF34&\"\"","v":""}]
[null,null,null,"(ﾊ)常用雇用労働者の数［ｲ+(ﾛ×0.5)］",null,null,null,null,null,null,null,null,{"$f":"M33+M34*0.5","v":0},null,null,null,null,null,null,"人",null,{"$f":"V33+V34*0.5","v":0},null,null,null,null,null,null,"人",null,{"$f":"AE33+AE34*0.5","v":0},null,null,null,null,null,null,"人",null,{"$f":"AN33+AN34*0.5","v":0},null,null,null,null,null,null,"人",null,{"$f":"AW33+AW34*0.5","v":0},null,null,null,null,null,null,"人",null,{"$f":"BF33+BF34*0.5","v":0},null,null,null,null,null,null,"人",null,null,null,null,null,null,null,null,null,null,null,null,null,null,null,null,null,null,null,null,null,null,null,null,null,null,null,null,null,null,null,null,null,null,null,null,null,null,null,null,null,null,null,null,null,null,null,null,null,null,null,null,null,null,null,null,null,null,null,null,null,null,null,{"$f":"M35&\"\"","v":"0"},{"$f":"V35&\"\"","v":"0"},{"$f":"AE35&\"\"","v":"0"},{"$f":"AN35&\"\"","v":"0"},{"$f":"AW35&\"\"","v":"0"},{"$f":"BF35&\"\"","v":"0"}]
[null,null,null,"(ﾆ)法定雇用障害者の算定の基礎と\n   なる労働者の数",null,null,null,null,null,null,null,null,{"$f":"V36+AE36+AN36+AW36+BF36+BQ31","v":0},null,null,null,null,null,null,"人",null,null,null,null,null,null,null,null,"人",null,null,null,null,null,null,null,null,"人",null,null,null,null,null,null,null,null,"人",null,null,null,null,null,null,null,null,"人",null,null,null,null,null,null,null,null,"人",null,null,null,null,null,null,null,null,null,null,null,null,null,null,null,null,null,null,null,null,null,null,null,null,null,null,null,null,null,null,null,null,null,null,null,null,null,null,null,null,null,null,null,null,null,null,null,null,null,null,null,null,null,null,null,null,null,null,{"$f":"M36&\"\"","v":"0"},{"$f":"V36&\"\"","v":""},{"$f":"AE36&\"\"","v":""},{"$f":"AN36&\"\"","v":""},{"$f":"AW36&\"\"","v":""},{"$f":"BF36&\"\"","v":""}]
[null,null,"(10)常用雇用身体障害者、知的障害者及び精神障害者の数"]
[]
[null,null,null,"(ﾎ)重度身体障害者の数",null,null,null,null,null,null,null,null,{"$f":"V39+AE39+AN39+AW39+BF39+BR31","v":0},null,null,null,null,null,null,"人",null,null,null,null,null,null,null,null,"人",null,null,null,null,null,null,null,null,"人",null,null,null,null,null,null,null,null,"人",null,null,null,null,null,null,null,null,"人",null,null,null,null,null,null,null,null,"人",null,null,null,null,null,null,null,null,null,null,null,null,null,null,null,null,null,null,null,null,null,null,null,null,null,null,null,null,null,null,null,null,null,null,null,null,null,null,null,null,null,null,null,null,null,null,null,null,null,null,null,null,null,null,null,null,null,null,{"$f":"M39&\"\"","v":"0"},{"$f":"V39&\"\"","v":""},{"$f":"AE39&\"\"","v":""},{"$f":"AN39&\"\"","v":""},{"$f":"AW39&\"\"","v":""},{"$f":"BF39&\"\"","v":""}]
[null,null,null,null,null,null,null,null,null,null,null,"（",{"$f":"V40+AE40+AN40+AW40+BF40+BS31","v":0},null,null,null,null,null,null,"）","（",null,null,null,null,null,null,null,"）","（",null,null,null,null,null,null,null,"）","（",null,null,null,null,null,null,null,"）","（",null,null,null,null,null,null,null,"）","（",null,null,null,null,null,null,null,"）",null,null,null,null,null,null,null,null,null,null,null,null,null,null,null,null,null,null,null,null,null,null,null,null,null,null,null,null,null,null,null,null,null,null,null,null,null,null,null,null,null,null,null,null,null,null,null,null,null,null,null,null,null,null,null,null,null,null,{"$f":"M40&\"\"","v":"0"},{"$f":"V40&\"\"","v":""},{"$f":"AE40&\"\"","v":""},{"$f":"AN40&\"\"","v":""},{"$f":"AW40&\"\"","v":""},{"$f":"BF40&\"\"","v":""}]
[null,null,null,"(ﾍ)重度身体障害者以外の\n   身体障害者の数",null,null,null,null,null,null,null,null,{"$f":"V41+AE41+AN41+AW41+BF41+BT31","v":0},null,null,null,null,null,null,"人",null,null,null,null,null,null,null,null,"人",null,null,null,null,null,null,null,null,"人",null,null,null,null,null,null,null,null,"人",null,null,null,null,null,null,null,null,"人",null,null,null,null,null,null,null,null,"人",null,null,null,null,null,null,null,null,null,null,null,null,null,null,null,null,null,null,null,null,null,null,null,null,null,null,null,null,null,null,null,null,null,null,null,null,null,null,null,null,null,null,null,null,null,null,null,null,null,null,null,null,null,null,null,null,null,null,"0","","","","",""]
[null,null,null,null,null,null,null,null,null,null,null,"（",{"$f":"V42+AE42+AN42+AW42+BF42+BU31","v":0},null,null,null,null,null,null,"）","（",null,null,null,null,null,null,null,"）","（",null,null,null,null,null,null,null,"）","（",null,null,null,null,null,null,null,"）","（",null,null,null,null,null,null,null,"）","（",null,null,null,null,null,null,null,"）",null,null,null,null,null,null,null,null,null,null,null,null,null,null,null,null,null,null,null,null,null,null,null,null,null,null,null,null,null,null,null,null,null,null,null,null,null,null,null,null,null,null,null,null,null,null,null,null,null,null,null,null,null,null,null,null,null,null,"0","","","","",""]
[null,null,null,"(ﾄ)重度身体障害者である\n　 短時間労働者の数",null,null,null,null,null,null,null,null,{"$f":"V43+AE43+AN43+AW43+BF43+BV31","v":0},null,null,null,null,null,null,"人",null,null,null,null,null,null,null,null,"人",null,null,null,null,null,null,null,null,"人",null,null,null,null,null,null,null,null,"人",null,null,null,null,null,null,null,null,"人",null,null,null,null,null,null,null,null,"人",null,null,null,null,null,null,null,null,null,null,null,null,null,null,null,null,null,null,null,null,null,null,null,null,null,null,null,null,null,null,null,null,null,null,null,null,null,null,null,null,null,null,null,null,null,null,null,null,null,null,null,null,null,null,null,null,null,null,{"$f":"M52&\"\"","v":"0"},{"$f":"V52&\"\"","v":""},{"$f":"AE52&\"\"","v":""},{"$f":"AN52&\"\"","v":""},{"$f":"AW52&\"\"","v":""},{"$f":"BF52&\"\"","v":""}]
[null,null,null,null,null,null,null,null,null,null,null,"（",{"$f":"V44+AE44+AN44+AW44+BF44+BW31","v":0},null,null,null,null,null,null,"）","（",null,null,null,null,null,null,null,"）","（",null,null,null,null,null,null,null,"）","（",null,null,null,null,null,null,null,"）","（",null,null,null,null,null,null,null,"）","（",null,null,null,null,null,null,null,"）",null,null,null,null,null,null,null,null,null,null,null,null,null,null,null,null,null,null,null,null,null,null,null,null,null,null,null,null,null,null,null,null,null,null,null,null,null,null,null,null,null,null,null,null,null,null,null,null,null,null,null,null,null,null,null,null,null,null,{"$f":"M55&\"\"","v":"0"},{"$f":"V55&\"\"","v":""},{"$f":"AE55&\"\"","v":""},{"$f":"AN55&\"\"","v":""},{"$f":"AW55&\"\"","v":""},{"$f":"BF55&\"\"","v":""}]
[null,null,null,"(ﾁ)重度身体障害者以外の身体障害\n   者である短時間労働者の数",null,null,null,null,null,null,null,null,{"$f":"V45+AE45+AN45+AW45+BF45+BX31","v":0},null,null,null,null,null,null,"人",null,null,null,null,null,null,null,null,"人",null,null,null,null,null,null,null,null,"人",null,null,null,null,null,null,null,null,"人",null,null,null,null,null,null,null,null,"人",null,null,null,null,null,null,null,null,"人",null,null,null,null,null,null,null,null,null,null,null,null,null,null,null,null,null,null,null,null,null,null,null,null,null,null,null,null,null,null,null,null,null,null,null,null,null,null,null,null,null,null,null,null,null,null,null,null,null,null,null,null,null,null,null,null,null,null,{"$f":"M45&\"\"","v":"0"},{"$f":"V45&\"\"","v":""},{"$f":"AE45&\"\"","v":""},{"$f":"AN45&\"\"","v":""},{"$f":"AW45&\"\"","v":""},{"$f":"BF45&\"\"","v":""}]
[null,null,null,null,null,null,null,null,null,null,null,"（",{"$f":"V46+AE46+AN46+AW46+BF46+BY31","v":0},null,null,null,null,null,null,"）","（",null,null,null,null,null,null,null,"）","（",null,null,null,null,null,null,null,"）","（",null,null,null,null,null,null,null,"）","（",null,null,null,null,null,null,null,"）","（",null,null,null,null,null,null,null,"）",null,null,null,null,null,null,null,null,null,null,null,null,null,null,null,null,null,null,null,null,null,null,null,null,null,null,null,null,null,null,null,null,null,null,null,null,null,null,null,null,null,null,null,null,null,null,null,null,null,null,null,null,null,null,null,null,null,null,"0","","","","",""]
[null,null,null,"(ﾘ)重度身体障害者である\n   特定短時間労働者の数",null,null,null,null,null,null,null,null,{"$f":"V47+AE47+AN47+AW47+BF47+BZ31","v":0},null,null,null,null,null,null,"人",null,null,null,null,null,null,null,null,"人",null,null,null,null,null,null,null,null,"人",null,null,null,null,null,null,null,null,"人",null,null,null,null,null,null,null,null,"人",null,null,null,null,null,null,null,null,"人",null,null,null,null,null,null,null,null,null,null,null,null,null,null,null,null,null,null,null,null,null,null,null,null,null,null,null,null,null,null,null,null,null,null,null,null,null,null,null,null,null,null,null,null,null,null,null,null,null,null,null,null,null,null,null,null,null,null,"0","","","","",""]
[null,null,null,null,null,null,null,null,null,null,null,"（",{"$f":"V48+AE48+AN48+AW48+BF48+CA31","v":0},null,null,null,null,null,null,"）","（",null,null,null,null,null,null,null,"）","（",null,null,null,null,null,null,null,"）","（",null,null,null,null,null,null,null,"）","（",null,null,null,null,null,null,null,"）","（",null,null,null,null,null,null,null,"）",null,null,null,null,null,null,null,null,null,null,null,null,null,null,null,null,null,null,null,null,null,null,null,null,null,null,null,null,null,null,null,null,null,null,null,null,null,null,null,null,null,null,null,null,null,null,null,null,null,null,null,null,null,null,null,null,null,null,"0","","","","",""]
[null,null,null,"(ﾇ)身体障害者の数",null,null,null,null,null,null,null,null,{"$f":"(M39*2)+M41+M43+((M45+M47)*0.5)","v":0},null,null,null,null,null,null,"人",null,{"$f":"(V39*2)+V41+V43+((V45+V47)*0.5)","v":0},null,null,null,null,null,null,"人",null,{"$f":"(AE39*2)+AE41+AE43+((AE45+AE47)*0.5)","v":0},null,null,null,null,null,null,"人",null,{"$f":"(AN39*2)+AN41+AN43+((AN45+AN47)*0.5)","v":0},null,null,null,null,null,null,"人",null,{"$f":"(AW39*2)+AW41+AW43+((AW45+AW47)*0.5)","v":0},null,null,null,null,null,null,"人",null,{"$f":"(BF39*2)+BF41+BF43+((BF45+BF47)*0.5)","v":0},null,null,null,null,null,null,"人",null,null,null,null,null,null,null,null,null,null,null,null,null,null,null,null,null,null,null,null,null,null,null,null,null,null,null,null,null,null,null,null,null,null,null,null,null,null,null,null,null,null,null,null,null,null,null,null,null,null,null,null,null,null,null,null,null,null,"0","0","0","0","0","0"]
[null,null,null,"  ［(ﾎ×2)+ﾍ+ﾄ+((ﾁ+ﾘ)×0.5)］",null,null,null,null,null,null,null,"（",{"$f":"(M40*2)+M42+M44+((M46+M48)*0.5)","v":0},null,null,null,null,null,null,"）","（",{"$f":"(V40*2)+V42+V44+((V46+V48)*0.5)","v":0},null,null,null,null,null,null,"）","（",{"$f":"(AE40*2)+AE42+AE44+((AE46+AE48)*0.5)","v":0},null,null,null,null,null,null,"）","（",{"$f":"(AN40*2)+AN42+AN44+((AN46+AN48)*0.5)","v":0},null,null,null,null,null,null,"）","（",{"$f":"(AW40*2)+AW42+AW44+((AW46+AW48)*0.5)","v":0},null,null,null,null,null,null,"）","（",{"$f":"(BF40*2)+BF42+BF44+((BF46+BF48)*0.5)","v":0},null,null,null,null,null,null,"）",null,null,null,null,null,null,null,null,null,null,null,null,null,null,null,null,null,null,null,null,null,null,null,null,null,null,null,null,null,null,null,null,null,null,null,null,null,null,null,null,null,null,null,null,null,null,null,null,null,null,null,null,null,null,null,null,null,null,"0","0","0","0","0","0"]
[null,null,null,"(ﾙ)重度知的障害者の数",null,null,null,null,null,null,null,null,{"$f":"V51+AE51+AN51+AW51+BF51+CB31","v":0},null,null,null,null,null,null,"人",null,null,null,null,null,null,null,null,"人",null,null,null,null,null,null,null,null,"人",null,null,null,null,null,null,null,null,"人",null,null,null,null,null,null,null,null,"人",null,null,null,null,null,null,null,null,"人",null,null,null,null,null,null,null,null,null,null,null,null,null,null,null,null,null,null,null,null,null,null,null,null,null,null,null,null,null,null,null,null,null,null,null,null,null,null,null,null,null,null,null,null,null,null,null,null,null,null,null,null,null,null,null,null,null,null,"0","","","","",""]
[null,null,null,null,null,null,null,null,null,null,null,"（",{"$f":"V52+AE52+AN52+AW52+BF52+CC31","v":0},null,null,null,null,null,null,"）","（",null,null,null,null,null,null,null,"）","（",null,null,null,null,null,null,null,"）","（",null,null,null,null,null,null,null,"）","（",null,null,null,null,null,null,null,"）","（",null,null,null,null,null,null,null,"）",null,null,null,null,null,null,null,null,null,null,null,null,null,null,null,null,null,null,null,null,null,null,null,null,null,null,null,null,null,null,null,null,null,null,null,null,null,null,null,null,null,null,null,null,null,null,null,null,null,null,null,null,null,null,null,null,null,null,"0","","","","",""]
[null,null,null,"(ｦ)重度知的障害者以外の\n   知的障害者の数",null,null,null,null,null,null,null,null,{"$f":"V53+AE53+AN53+AW53+BF53+CD31","v":0},null,null,null,null,null,null,"人",null,null,null,null,null,null,null,null,"人",null,null,null,null,null,null,null,null,"人",null,null,null,null,null,null,null,null,"人",null,null,null,null,null,null,null,null,"人",null,null,null,null,null,null,null,null,"人",null,null,null,null,null,null,null,null,null,null,null,null,null,null,null,null,null,null,null,null,null,null,null,null,null,null,null,null,null,null,null,null,null,null,null,null,null,null,null,null,null,null,null,null,null,null,null,null,null,null,null,null,null,null,null,null,null,null,"0","","","","",""]
[null,null,null,null,null,null,null,null,null,null,null,"（",{"$f":"V54+AE54+AN54+AW54+BF54+CE31","v":0},null,null,null,null,null,null,"）","（",null,null,null,null,null,null,null,"）","（",null,null,null,null,null,null,null,"）","（",null,null,null,null,null,null,null,"）","（",null,null,null,null,null,null,null,"）","（",null,null,null,null,null,null,null,"）",null,null,null,null,null,null,null,null,null,null,null,null,null,null,null,null,null,null,null,null,null,null,null,null,null,null,null,null,null,null,null,null,null,null,null,null,null,null,null,null,null,null,null,null,null,null,null,null,null,null,null,null,null,null,null,null,null,null,"0","","","","",""]
[null,null,null,"(ﾜ)重度知的障害者である\n   短時間労働者の数",null,null,null,null,null,null,null,null,{"$f":"V55+AE55+AN55+AW55+BF55+CF31","v":0},null,null,null,null,null,null,"人",null,null,null,null,null,null,null,null,"人",null,null,null,null,null,null,null,null,"人",null,null,null,null,null,null,null,null,"人",null,null,null,null,null,null,null,null,"人",null,null,null,null,null,null,null,null,"人",null,null,null,null,null,null,null,null,null,null,null,null,null,null,null,null,null,null,null,null,null,null,null,null,null,null,null,null,null,null,null,null,null,null,null,null,null,null,null,null,null,null,null,null,null,null,null,null,null,null,null,null,null,null,null,null,null,null,"0","","","","",""]
[null,null,null,null,null,null,null,null,null,null,null,"（",{"$f":"V56+AE56+AN56+AW56+BF56+CG31","v":0},null,null,null,null,null,null,"）","（",null,null,null,null,null,null,null,"）","（",null,null,null,null,null,null,null,"）","（",null,null,null,null,null,null,null,"）","（",null,null,null,null,null,null,null,"）","（",null,null,null,null,null,null,null,"）",null,null,null,null,null,null,null,null,null,null,null,null,null,null,null,null,null,null,null,null,null,null,null,null,null,null,null,null,null,null,null,null,null,null,null,null,null,null,null,null,null,null,null,null,null,null,null,null,null,null,null,null,null,null,null,null,null,null,"0","","","","",""]
[null,null,null,"(ｶ)重度知的障害者以外の知的障害\n   者である短時間労働者の数",null,null,null,null,null,null,null,null,{"$f":"V57+AE57+AN57+AW57+BF57+CH31","v":0},null,null,null,null,null,null,"人",null,null,null,null,null,null,null,null,"人",null,null,null,null,null,null,null,null,"人",null,null,null,null,null,null,null,null,"人",null,null,null,null,null,null,null,null,"人",null,null,null,null,null,null,null,null,"人",null,null,null,null,null,null,null,null,null,null,null,null,null,null,null,null,null,null,null,null,null,null,null,null,null,null,null,null,null,null,null,null,null,null,null,null,null,null,null,null,null,null,null,null,null,null,null,null,null,null,null,null,null,null,null,null,null,null,{"$f":"M57&\"\"","v":"0"},{"$f":"V57&\"\"","v":""},{"$f":"AE57&\"\"","v":""},{"$f":"AN57&\"\"","v":""},{"$f":"AW57&\"\"","v":""},{"$f":"BF57&\"\"","v":""}]
[null,null,null,null,null,null,null,null,null,null,null,"（",{"$f":"V58+AE58+AN58+AW58+BF58+CI31","v":0},null,null,null,null,null,null,"）","（",null,null,null,null,null,null,null,"）","（",null,null,null,null,null,null,null,"）","（",null,null,null,null,null,null,null,"）","（",null,null,null,null,null,null,null,"）","（",null,null,null,null,null,null,null,"）",null,null,null,null,null,null,null,null,null,null,null,null,null,null,null,null,null,null,null,null,null,null,null,null,null,null,null,null,null,null,null,null,null,null,null,null,null,null,null,null,null,null,null,null,null,null,null,null,null,null,null,null,null,null,null,null,null,null,"0","","","","",""]
[null,null,null,"(ﾖ)重度知的障害者である\n   特定短時間労働者の数",null,null,null,null,null,null,null,null,{"$f":"V59+AE59+AN59+AW59+BF59+CJ31","v":0},null,null,null,null,null,null,"人",null,null,null,null,null,null,null,null,"人",null,null,null,null,null,null,null,null,"人",null,null,null,null,null,null,null,null,"人",null,null,null,null,null,null,null,null,"人",null,null,null,null,null,null,null,null,"人",null,null,null,null,null,null,null,null,null,null,null,null,null,null,null,null,null,null,null,null,null,null,null,null,null,null,null,null,null,null,null,null,null,null,null,null,null,null,null,null,null,null,null,null,null,null,null,null,null,null,null,null,null,null,null,null,null,null,"0","","","","",""]
[null,null,null,null,null,null,null,null,null,null,null,"（",{"$f":"V60+AE60+AN60+AW60+BF60+CK31","v":0},null,null,null,null,null,null,"）","（",null,null,null,null,null,null,null,"）","（",null,null,null,null,null,null,null,"）","（",null,null,null,null,null,null,null,"）","（",null,null,null,null,null,null,null,"）","（",null,null,null,null,null,null,null,"）",null,null,null,null,null,null,null,null,null,null,null,null,null,null,null,null,null,null,null,null,null,null,null,null,null,null,null,null,null,null,null,null,null,null,null,null,null,null,null,null,null,null,null,null,null,null,null,null,null,null,null,null,null,null,null,null,null,null,"0","","","","",""]
[null,null,null,"(ﾀ)知的障害者の数",null,null,null,null,null,null,null,null,{"$f":"(M51*2)+M53+M55+((M57+M59)*0.5)","v":0},null,null,null,null,null,null,"人",null,{"$f":"(V51*2)+V53+V55+((V57+V59)*0.5)","v":0},null,null,null,null,null,null,"人",null,{"$f":"(AE51*2)+AE53+AE55+((AE57+AE59)*0.5)","v":0},null,null,null,null,null,null,"人",null,{"$f":"(AN51*2)+AN53+AN55+((AN57+AN59)*0.5)","v":0},null,null,null,null,null,null,"人",null,{"$f":"(AW51*2)+AW53+AW55+((AW57+AW59)*0.5)","v":0},null,null,null,null,null,null,"人",null,{"$f":"(BF51*2)+BF53+BF55+((BF57+BF59)*0.5)","v":0},null,null,null,null,null,null,"人",null,null,null,null,null,null,null,null,null,null,null,null,null,null,null,null,null,null,null,null,null,null,null,null,null,null,null,null,null,null,null,null,null,null,null,null,null,null,null,null,null,null,null,null,null,null,null,null,null,null,null,null,null,null,null,null,null,null,"0","0","0","0","0","0"]
[null,null,null,"  ［(ﾙ×2)+ｦ+ﾜ+((ｶ+ﾖ)×0.5)］",null,null,null,null,null,null,null,"（",{"$f":"(M52*2)+M54+M56+((M58+M60)*0.5)","v":0},null,null,null,null,null,null,"）","（",{"$f":"(V52*2)+V54+V56+((V58+V60)*0.5)","v":0},null,null,null,null,null,null,"）","（",{"$f":"(AE52*2)+AE54+AE56+((AE58+AE60)*0.5)","v":0},null,null,null,null,null,null,"）","（",{"$f":"(AN52*2)+AN54+AN56+((AN58+AN60)*0.5)","v":0},null,null,null,null,null,null,"）","（",{"$f":"(AW52*2)+AW54+AW56+((AW58+AW60)*0.5)","v":0},null,null,null,null,null,null,"）","（",{"$f":"(BF52*2)+BF54+BF56+((BF58+BF60)*0.5)","v":0},null,null,null,null,null,null,"）",null,null,null,null,null,null,null,null,null,null,null,null,null,null,null,null,null,null,null,null,null,null,null,null,null,null,null,null,null,null,null,null,null,null,null,null,null,null,null,null,null,null,null,null,null,null,null,null,null,null,null,null,null,null,null,null,null,null,"0","0","0","0","0","0"]
[null,null,null,"(ﾚ)精神障害者の数",null,null,null,null,null,null,null,null,{"$f":"V63+AE63+AN63+AW63+BF63+CL31","v":0},null,null,null,null,null,null,"人",null,null,null,null,null,null,null,null,"人",null,null,null,null,null,null,null,null,"人",null,null,null,null,null,null,null,null,"人",null,null,null,null,null,null,null,null,"人",null,null,null,null,null,null,null,null,"人",null,null,null,null,null,null,null,null,null,null,null,null,null,null,null,null,null,null,null,null,null,null,null,null,null,null,null,null,null,null,null,null,null,null,null,null,null,null,null,null,null,null,null,null,null,null,null,null,null,null,null,null,null,null,null,null,null,null,"0","","","","",""]
[null,null,null,null,null,null,null,null,null,null,null,"（",{"$f":"V64+AE64+AN64+AW64+BF64+CM31","v":0},null,null,null,null,null,null,"）","（",null,null,null,null,null,null,null,"）","（",null,null,null,null,null,null,null,"）","（",null,null,null,null,null,null,null,"）","（",null,null,null,null,null,null,null,"）","（",null,null,null,null,null,null,null,"）",null,null,null,null,null,null,null,null,null,null,null,null,null,null,null,null,null,null,null,null,null,null,null,null,null,null,null,null,null,null,null,null,null,null,null,null,null,null,null,null,null,null,null,null,null,null,null,null,null,null,null,null,null,null,null,null,null,null,"0","","","","",""]
[null,null,null,"(ｿ)精神障害者である\n   短時間労働者の数",null,null,null,null,null,null,null,null,{"$f":"V65+AE65+AN65+AW65+BF65+CN31","v":0},null,null,null,null,null,null,"人",null,null,null,null,null,null,null,null,"人",null,null,null,null,null,null,null,null,"人",null,null,null,null,null,null,null,null,"人",null,null,null,null,null,null,null,null,"人",null,null,null,null,null,null,null,null,"人",null,null,null,null,null,null,null,null,null,null,null,null,null,null,null,null,null,null,null,null,null,null,null,null,null,null,null,null,null,null,null,null,null,null,null,null,null,null,null,null,null,null,null,null,null,null,null,null,null,null,null,null,null,null,null,null,null,null,"0","","","","",""]
[null,null,null,null,null,null,null,null,null,null,null,"（",{"$f":"V66+AE66+AN66+AW66+BF66+CO31","v":0},null,null,null,null,null,null,"）","（",null,null,null,null,null,null,null,"）","（",null,null,null,null,null,null,null,"）","（",null,null,null,null,null,null,null,"）","（",null,null,null,null,null,null,null,"）","（",null,null,null,null,null,null,null,"）",null,null,null,null,null,null,null,null,null,null,null,null,null,null,null,null,null,null,null,null,null,null,null,null,null,null,null,null,null,null,null,null,null,null,null,null,null,null,null,null,null,null,null,null,null,null,null,null,null,null,null,null,null,null,null,null,null,null,"0","","","","",""]
[null,null,null,"(ﾂ)精神障害者である\n   特定短時間労働者の数",null,null,null,null,null,null,null,null,{"$f":"V67+AE67+AN67+AW67+BF67+CP31","v":0},null,null,null,null,null,null,"人",null,null,null,null,null,null,null,null,"人",null,null,null,null,null,null,null,null,"人",null,null,null,null,null,null,null,null,"人",null,null,null,null,null,null,null,null,"人",null,null,null,null,null,null,null,null,"人",null,null,null,null,null,null,null,null,null,null,null,null,null,null,null,null,null,null,null,null,null,null,null,null,null,null,null,null,null,null,null,null,null,null,null,null,null,null,null,null,null,null,null,null,null,null,null,null,null,null,null,null,null,null,null,null,null,null,null,null,null,null,null,{"$f":"M67&\"\"","v":"0"},{"$f":"V67&\"\"","v":""},{"$f":"AE67&\"\"","v":""},{"$f":"AN67&\"\"","v":""},{"$f":"AW67&\"\"","v":""},{"$f":"BF67&\"\"","v":""}]
[null,null,null,null,null,null,null,null,null,null,null,"（",{"$f":"V68+AE68+AN68+AW68+BF68+CQ31","v":0},null,null,null,null,null,null,"）","（",null,null,null,null,null,null,null,"）","（",null,null,null,null,null,null,null,"）","（",null,null,null,null,null,null,null,"）","（",null,null,null,null,null,null,null,"）","（",null,null,null,null,null,null,null,"）",null,null,null,null,null,null,null,null,null,null,null,null,null,null,null,null,null,null,null,null,null,null,null,null,null,null,null,null,null,null,null,null,null,null,null,null,null,null,null,null,null,null,null,null,null,null,null,null,null,null,null,null,null,null,null,null,null,null,null,null,null,null,null,"0","","","","",""]
[null,null,null,"(ﾈ)精神障害者の数",null,null,null,null,null,null,null,null,{"$f":"M63+M65+M67*0.5","v":0},null,null,null,null,null,null,"人",null,{"$f":"V63+V65+V67*0.5","v":0},null,null,null,null,null,null,"人",null,{"$f":"AE63+AE65+AE67*0.5","v":0},null,null,null,null,null,null,"人",null,{"$f":"AN63+AN65+AN67*0.5","v":0},null,null,null,null,null,null,"人",null,{"$f":"AW63+AW65+AW67*0.5","v":0},null,null,null,null,null,null,"人",null,{"$f":"BF63+BF65+BF67*0.5","v":0},null,null,null,null,null,null,"人",null,null,null,null,null,null,null,null,null,null,null,null,null,null,null,null,null,null,null,null,null,null,null,null,null,null,null,null,null,null,null,null,null,null,null,null,null,null,null,null,null,null,null,null,null,null,null,null,null,null,null,null,null,null,null,null,null,null,"0","0","0","0","0","0"]
[null,null,null,"　［ﾚ+ｿ+(ﾂ×0.5)］",null,null,null,null,null,null,null,"（",{"$f":"M64+M66+M68*0.5","v":0},null,null,null,null,null,null,"）","（",{"$f":"V64+V66+V68*0.5","v":0},null,null,null,null,null,null,"）","（",{"$f":"AE64+AE66+AE68*0.5","v":0},null,null,null,null,null,null,"）","（",{"$f":"AN64+AN66+AN68*0.5","v":0},null,null,null,null,null,null,"）","（",{"$f":"AW64+AW66+AW68*0.5","v":0},null,null,null,null,null,null,"）","（",{"$f":"BF64+BF66+BF68*0.5","v":0},null,null,null,null,null,null,"）",null,null,null,null,null,null,null,null,null,null,null,null,null,null,null,null,null,null,null,null,null,null,null,null,null,null,null,null,null,null,null,null,null,null,null,null,null,null,null,null,null,null,null,null,null,null,null,null,null,null,null,null,null,null,null,null,null,null,"0","0","0","0","0","0"]
[null,null,"(11)　　　     計",null,null,null,null,null,null,null,null,null,{"$f":"M49+M61+M69","v":0},null,null,null,null,null,null,"人",null,{"$f":"V49+V61+V69","v":0},null,null,null,null,null,null,"人",null,{"$f":"AE49+AE61+AE69","v":0},null,null,null,null,null,null,"人",null,{"$f":"AN49+AN61+AN69","v":0},null,null,null,null,null,null,"人",null,{"$f":"AW49+AW61+AW69","v":0},null,null,null,null,null,null,"人",null,{"$f":"BF49+BF61+BF69","v":0},null,null,null,null,null,null,"人",null,null,null,null,null,null,null,null,null,null,null,null,null,null,null,null,null,null,null,null,null,null,null,null,null,null,null,null,null,null,null,null,null,null,null,null,null,null,null,null,null,null,null,null,null,null,null,null,null,null,null,null,null,null,null,null,null,null,"0","0","0","0","0","0"]
[null,null,"  　［(10)のﾇ+(10)のﾀ+(10)のﾈ］",null,null,null,null,null,null,null,null,"（",{"$f":"M50+M62+M70","v":0},null,null,null,null,null,null,"）","（",{"$f":"V50+V62+V70","v":0},null,null,null,null,null,null,"）","（",{"$f":"AE50+AE62+AE70","v":0},null,null,null,null,null,null,"）","（",{"$f":"AN50+AN62+AN70","v":0},null,null,null,null,null,null,"）","（",{"$f":"AW50+AW62+AW70","v":0},null,null,null,null,null,null,"）","（",{"$f":"BF50+BF62+BF70","v":0},null,null,null,null,null,null,"）",null,null,null,null,null,null,null,null,null,null,null,null,null,null,null,null,null,null,null,null,null,null,null,null,null,null,null,null,null,null,null,null,null,null,null,null,null,null,null,null,null,null,null,null,null,null,null,null,null,null,null,null,null,null,null,null,null,null,"0","0","0","0","0","0"]
[null,null,"(12)実雇用率  ",null,null,null,null,null,null,null,null,{"$f":"IF( OR(M36=0,M36=\"\"),0,ROUND(M71/M36*100,2))","v":0},null,null,null,null,null,null,null,"％","(13)身体障害者、知的障害者又は精神障害者の不足数",null,null,null,null,null,null,null,null,null,null,null,null,null,null,null,null,null,null,null,null,null,null,null,null,null,null,null,null,null,null,null,null,null,null,"人",null,null,null,null,null,null,null,null,null,null,null,null,null,null,null,null,null,null,null,null,null,null,null,null,null,null,null,null,null,null,null,null,null,null,null,null,null,null,null,null,null,null,null,null,null,null,null,null,null,null,null,null,null,null,null,null,null,null,null,null,null,null,null,null,null,null,null,"","","","","",""]
[null,null,"   ((11)/(9)のﾆ×100) ",null,null,null,null,null,null,null,null,null,null,null,null,null,null,null,null,null,"［((9)のﾆ×法定雇用率)-(11)］"]
[null,"Ｄ　障害者の雇用の促進等に関する法律別表に掲げる種類別の身体障害者数"]
[null,"視覚障害者（第１号に該当する者）",null,null,null,null,null,null,null,null,null,null,{"$f":"V76+AE76+AN76+AW76+BF76+CR31","v":0},null,null,null,null,null,null,"人",null,null,null,null,null,null,null,null,"人",null,null,null,null,null,null,null,null,"人",null,null,null,null,null,null,null,null,"人",null,null,null,null,null,null,null,null,"人",null,null,null,null,null,null,null,null,"人"]
[null,"聴覚又は平衡機能障害者\n（第２号に該当する者）",null,null,null,null,null,null,null,null,null,null,{"$f":"V77+AE77+AN77+AW77+BF77+CS31","v":0},null,null,null,null,null,null,"人",null,null,null,null,null,null,null,null,"人",null,null,null,null,null,null,null,null,"人",null,null,null,null,null,null,null,null,"人",null,null,null,null,null,null,null,null,"人",null,null,null,null,null,null,null,null,"人"]
[null,"音声・言語・そしゃく機能障害者\n（第３号に該当する者）",null,null,null,null,null,null,null,null,null,null,{"$f":"V78+AE78+AN78+AW78+BF78+CT31","v":0},null,null,null,null,null,null,"人",null,null,null,null,null,null,null,null,"人",null,null,null,null,null,null,null,null,"人",null,null,null,null,null,null,null,null,"人",null,null,null,null,null,null,null,null,"人",null,null,null,null,null,null,null,null,"人"]
[null,"肢体不自由者（第４号に該当する者）",null,null,null,null,null,null,null,null,null,null,{"$f":"V79+AE79+AN79+AW79+BF79+CU31","v":0},null,null,null,null,null,null,"人",null,null,null,null,null,null,null,null,"人",null,null,null,null,null,null,null,null,"人",null,null,null,null,null,null,null,null,"人",null,null,null,null,null,null,null,null,"人",null,null,null,null,null,null,null,null,"人"]
[null,"内部障害者（第５号に該当する者）",null,null,null,null,null,null,null,null,null,null,{"$f":"V80+AE80+AN80+AW80+BF80+CV31","v":0},null,null,null,null,null,null,"人",null,null,null,null,null,null,null,null,"人",null,null,null,null,null,null,null,null,"人",null,null,null,null,null,null,null,null,"人",null,null,null,null,null,null,null,null,"人",null,null,null,null,null,null,null,null,"人"]
[null," Ｅ 障害者\n 雇用推進者\n",null,null,null,"役職名",null,null,null,null,null,null,null,null,null,"氏名",null,null,null,null,null,null,null,null,null,null,null,null,null,null,"Ｅ 記入\n担当者",null,null,null,"所　属　部課名 ",null,null,null,null,null,null,null,null,null,null,null,null,null,null,"氏名"]
[]
[null,"   （記載上の留意事項は、記載要領にあります。）"]
[]
[null,null,null,null,null,null,null,null,null,null,null,null,null,null,null,"障害者雇用状況報告書\n（法第45条の２の認定を受けた事業主用、グループ全体）"]
[]
[]
[]
[null,"　Ｂ　雇用の状況","区     分",null,null,null,null,null,null,null,null,"Ｃ　事　業　主　ご　と　の　内　訳"]
[null,null,"(5)適用事業所番号",null,null,null,null,null,null,null,null,null,null,"―",null,null,null,null,"―",null,null,null,null,null,"―",null,null,null,null,"―",null,null,null,null,null,"―",null,null,null,"―",null,null,null,null,null,null,"―",null,null,null,null,"―",null,null,null,null,null,"―",null,null,null,null,"―",null,null,null,null,null,null,null,null,null,null,null,null,null,null,null,null,null,null,null,null,null,null,null,null,null,null,null,null,null,null,null,null,null,null,null,null,null,null,null,null,null,null,null,null,null,null,null,null,null,null,null,null,null,null,{"$f":"L90&\"\"","v":""},{"$f":"U90&\"\"","v":""},{"$f":"AD90&\"\"","v":"―"},{"$f":"AM90&\"\"","v":""},{"$f":"AV90&\"\"","v":""},{"$f":"BE90&\"\"","v":""}]
[null,null,"(6)親事業主・関係子会社の別",null,null,null,null,null,null,null,null,null,null,null,null,null,null,null,null,null,null,null,null,null,null,null,null,null,null,null,null,null,null,null,null,null,null,null,null,null,null,null,null,null,null,null,null,null,null,null,null,null,null,null,null,null,null,null,null,null,null,null,null,null,null,null,null,null,null,null,null,null,null,null,null,null,null,null,null,null,null,null,null,null,null,null,null,null,null,null,null,null,null,null,null,null,null,null,null,null,null,null,null,null,null,null,null,null,null,null,null,null,null,null,null,null,null,{"$f":"O90&\"\"","v":""},{"$f":"X90&\"\"","v":""},{"$f":"AG90&\"\"","v":""},{"$f":"AP90&\"\"","v":""},{"$f":"AY90&\"\"","v":""},{"$f":"BH90&\"\"","v":""}]
[null,null,null,null,null,null,null,null,null,null,null,null,null,null,null,null,null,null,null,null,null,null,null,null,null,null,null,null,null,null,null,null,null,null,null,null,null,null,null,null,null,null,null,null,null,null,null,null,null,null,null,null,null,null,null,null,null,null,null,null,null,null,null,null,null,null,null,null,null,null,null,null,null,null,null,null,null,null,null,null,null,null,null,null,null,null,null,null,null,null,null,null,null,null,null,null,null,null,null,null,null,null,null,null,null,null,null,null,null,null,null,null,null,null,null,null,null,{"$f":"T90&\"\"","v":""},{"$f":"AC90&\"\"","v":""},{"$f":"AL90&\"\"","v":""},{"$f":"AU90&\"\"","v":"―"},{"$f":"BD90&\"\"","v":""},{"$f":"BM90&\"\"","v":""}]
[null,null,"(7)名称及び代表者の氏名",null,null,null,null,null,null,null,null,null,null,null,null,null,null,null,null,null,null,null,null,null,null,null,null,null,null,null,null,null,null,null,null,null,null,null,null,null,null,null,null,null,null,null,null,null,null,null,null,null,null,null,null,null,null,null,null,null,null,null,null,null,null,null,null,null,null,null,null,null,null,null,null,null,null,null,null,null,null,null,null,null,null,null,null,null,null,null,null,null,null,null,null,null,null,null,null,null,null,null,null,null,null,null,null,null,null,null,null,null,null,null,null,null,null,{"$f":"L91&\"\"","v":""},{"$f":"U91&\"\"","v":""},{"$f":"AD91&\"\"","v":""},{"$f":"AM91&\"\"","v":""},{"$f":"AV91&\"\"","v":""},{"$f":"BE91&\"\"","v":""}]
[]
[null,null,null,null,null,null,null,null,null,null,null,null,null,null,null,null,null,null,null,null,null,null,null,null,null,null,null,null,null,null,null,null,null,null,null,null,null,null,null,null,null,null,null,null,null,null,null,null,null,null,null,null,null,null,null,null,null,null,null,null,null,null,null,null,null,null,null,null,null,null,null,null,null,null,null,null,null,null,null,null,null,null,null,null,null,null,null,null,null,null,null,null,null,null,null,null,null,null,null,null,null,null,null,null,null,null,null,null,null,null,null,null,null,null,null,null,null,{"$f":"L93&\"\"","v":""},{"$f":"U93&\"\"","v":""},{"$f":"AD93&\"\"","v":""},{"$f":"AM93&\"\"","v":""},{"$f":"AV93&\"\"","v":""},{"$f":"BE93&\"\"","v":""}]
[]
[null,null,"(8)主たる事業所の所在地",null,null,null,null,null,null,null,null,null,null,null,null,null,null,null,null,null,null,null,null,null,null,null,null,null,null,null,null,null,null,null,null,null,null,null,null,null,null,null,null,null,null,null,null,null,null,null,null,null,null,null,null,null,null,null,null,null,null,null,null,null,null,null,null,null,null,null,null,null,null,null,null,null,null,null,null,null,null,null,null,null,null,null,null,null,null,null,null,null,null,null,null,null,null,null,null,null,null,null,null,null,null,null,null,null,null,null,null,null,null,null,null,null,null,{"$f":"L97&\"\"","v":""},{"$f":"U97&\"\"","v":""},{"$f":"AD97&\"\"","v":""},{"$f":"AM97&\"\"","v":""},{"$f":"AV97&\"\"","v":""},{"$f":"BE97&\"\"","v":""}]
[]
[]
[]
[null,null,"(9)常用雇用労働者の数"]
[]
[null,null,null,"(ｲ)常用雇用労働者の数",null,null,null,null,null,null,null,null,null,null,null,null,null,null,null,null,"人",null,null,null,null,null,null,null,null,null,"人",null,null,null,null,null,null,null,null,null,null,null,"人",null,null,null,null,null,null,null,null,null,null,"人",null,null,null,null,null,null,null,null,null,null,"人",null,{"$f":"M103+W103+AH103+AS103+BE103","v":0},{"$f":"M104+W104+AH104+AS104+BE104","v":0},{"$f":"M106+W106+AH106+AS106+BE106","v":0},{"$f":"M109+W109+AH109+AS109+BE109","v":0},{"$f":"M110+W110+AH110+AS110+BE110","v":0},{"$f":"M111+W111+AH111+AS111+BE111","v":0},{"$f":"M112+W112+AH112+AS112+BE112","v":0},{"$f":"M113+W113+AH113+AS113+BE113","v":0},{"$f":"M114+W114+AH114+AS114+BE114","v":0},{"$f":"M115+W115+AH115+AS115+BE115","v":0},{"$f":"M116+W116+AH116+AS116+BE116","v":0},{"$f":"M117+W117+AH117+AS117+BE117","v":0},{"$f":"M118+W118+AH118+AS118+BE118","v":0},{"$f":"M121+W121+AH121+AS121+BE121","v":0},{"$f":"M122+W122+AH122+AS122+BE122","v":0},{"$f":"M123+W123+AH123+AS123+BE123","v":0},{"$f":"M124+W124+AH124+AS124+BE124","v":0},{"$f":"M125+W125+AH125+AS125+BE125","v":0},{"$f":"M126+W126+AH126+AS126+BE126","v":0},{"$f":"M127+W127+AH127+AS127+BE127","v":0},{"$f":"M128+W128+AH128+AS128+BE128","v":0},{"$f":"M129+W129+AH129+AS129+BE129","v":0},{"$f":"M130+W130+AH130+AS130+BE130","v":0},{"$f":"M133+W133+AH133+AS133+BE133","v":0},{"$f":"M134+W134+AH134+AS134+BE134","v":0},{"$f":"M135+W135+AH135+AS135+BE135","v":0},{"$f":"M136+W136+AH136+AS136+BE136","v":0},{"$f":"M137+W137+AH137+AS137+BE137","v":0},{"$f":"M138+W138+AH138+AS138+BE138","v":0},{"$f":"M144+W144+AH144+AS144+BE144","v":0},{"$f":"M145+W145+AH145+AS145+BE145","v":0},{"$f":"M146+W146+AH146+AS146+BE146","v":0},{"$f":"M147+W147+AH147+AS147+BE147","v":0},{"$f":"M148+W148+AH148+AS148+BE148","v":0},null,null,null,null,null,null,null,null,null,null,null,null,null,null,null,null,null,{"$f":"M103&\"\"","v":""},{"$f":"V103&\"\"","v":""},{"$f":"AE103&\"\"","v":"人"},{"$f":"AN103&\"\"","v":""},{"$f":"AW103&\"\"","v":""},{"$f":"BF103&\"\"","v":""}]
[null,null,null,"(ﾛ)短時間労働者の数",null,null,null,null,null,null,null,null,null,null,null,null,null,null,null,null,"人",null,null,null,null,null,null,null,null,null,"人",null,null,null,null,null,null,null,null,null,null,null,"人",null,null,null,null,null,null,null,null,null,null,"人",null,null,null,null,null,null,null,null,null,null,"人",null,null,null,null,null,null,null,null,null,null,null,null,null,null,null,null,null,null,null,null,null,null,null,null,null,null,null,null,null,null,null,null,null,null,null,null,null,null,null,null,null,null,null,null,null,null,null,null,null,null,null,null,{"$f":"M104&\"\"","v":""},{"$f":"V104&\"\"","v":""},{"$f":"AE104&\"\"","v":"人"},{"$f":"AN104&\"\"","v":""},{"$f":"AW104&\"\"","v":""},{"$f":"BF104&\"\"","v":""}]
[null,null,null,"(ﾊ)常用雇用労働者の数［ｲ+(ﾛ×0.5)］",null,null,null,null,null,null,null,null,{"$f":"M103+M104*0.5","v":0},null,null,null,null,null,null,null,"人",null,{"$f":"W103+W104*0.5","v":0},null,null,null,null,null,null,null,"人",null,null,{"$f":"AH103+AH104*0.5","v":0},null,null,null,null,null,null,null,null,"人",null,{"$f":"AS103+AS104*0.5","v":0},null,null,null,null,null,null,null,null,"人",null,null,{"$f":"BE103+BE104*0.5","v":0},null,null,null,null,null,null,null,"人",null,null,null,null,null,null,null,null,null,null,null,null,null,null,null,null,null,null,null,null,null,null,null,null,null,null,null,null,null,null,null,null,null,null,null,null,null,null,null,null,null,null,null,null,null,null,null,null,null,null,null,null,{"$f":"M105&\"\"","v":"0"},{"$f":"V105&\"\"","v":""},{"$f":"AE105&\"\"","v":"人"},{"$f":"AN105&\"\"","v":""},{"$f":"AW105&\"\"","v":""},{"$f":"BF105&\"\"","v":""}]
[null,null,null,"(ﾆ)法定雇用障害者の算定の基礎と\n   なる労働者の数",null,null,null,null,null,null,null,null,null,null,null,null,null,null,null,null,"人",null,null,null,null,null,null,null,null,null,"人",null,null,null,null,null,null,null,null,null,null,null,"人",null,null,null,null,null,null,null,null,null,null,"人",null,null,null,null,null,null,null,null,null,null,"人",null,null,null,null,null,null,null,null,null,null,null,null,null,null,null,null,null,null,null,null,null,null,null,null,null,null,null,null,null,null,null,null,null,null,null,null,null,null,null,null,null,null,null,null,null,null,null,null,null,null,null,null,{"$f":"M106&\"\"","v":""},{"$f":"V106&\"\"","v":""},{"$f":"AE106&\"\"","v":"人"},{"$f":"AN106&\"\"","v":""},{"$f":"AW106&\"\"","v":""},{"$f":"BF106&\"\"","v":""}]
[null,null,"(10)常用雇用身体障害者、知的障害者及び精神障害者の数"]
[]
[null,null,null,"(ﾎ)重度身体障害者の数",null,null,null,null,null,null,null,null,null,null,null,null,null,null,null,null,"人",null,null,null,null,null,null,null,null,null,"人",null,null,null,null,null,null,null,null,null,null,null,"人",null,null,null,null,null,null,null,null,null,null,"人",null,null,null,null,null,null,null,null,null,null,"人",null,null,null,null,null,null,null,null,null,null,null,null,null,null,null,null,null,null,null,null,null,null,null,null,null,null,null,null,null,null,null,null,null,null,null,null,null,null,null,null,null,null,null,null,null,null,null,null,null,null,null,null,{"$f":"M109&\"\"","v":""},{"$f":"V109&\"\"","v":""},{"$f":"AE109&\"\"","v":"人"},{"$f":"AN109&\"\"","v":""},{"$f":"AW109&\"\"","v":""},{"$f":"BF109&\"\"","v":""}]
[null,null,null,null,null,null,null,null,null,null,null,"（",null,null,null,null,null,null,null,null,"）","（",null,null,null,null,null,null,null,null,"）",null,"（",null,null,null,null,null,null,null,null,null,"）","（",null,null,null,null,null,null,null,null,null,"）",null,"（",null,null,null,null,null,null,null,null,"）",null,null,null,null,null,null,null,null,null,null,null,null,null,null,null,null,null,null,null,null,null,null,null,null,null,null,null,null,null,null,null,null,null,null,null,null,null,null,null,null,null,null,null,null,null,null,null,null,null,null,null,null,{"$f":"M110&\"\"","v":""},{"$f":"V110&\"\"","v":"（"},{"$f":"AE110&\"\"","v":"）"},{"$f":"AN110&\"\"","v":""},{"$f":"AW110&\"\"","v":""},{"$f":"BF110&\"\"","v":""}]
[null,null,null,"(ﾍ)重度身体障害者以外の\n   身体障害者の数",null,null,null,null,null,null,null,null,null,null,null,null,null,null,null,null,"人",null,null,null,null,null,null,null,null,null,"人",null,null,null,null,null,null,null,null,null,null,null,"人",null,null,null,null,null,null,null,null,null,null,"人",null,null,null,null,null,null,null,null,null,null,"人",null,null,null,null,null,null,null,null,null,null,null,null,null,null,null,null,null,null,null,null,null,null,null,null,null,null,null,null,null,null,null,null,null,null,null,null,null,null,null,null,null,null,null,null,null,null,null,null,null,null,null,null,"","","人","","",""]
[null,null,null,null,null,null,null,null,null,null,null,"（",null,null,null,null,null,null,null,null,"）","（",null,null,null,null,null,null,null,null,"）",null,"（",null,null,null,null,null,null,null,null,null,"）","（",null,null,null,null,null,null,null,null,null,"）",null,"（",null,null,null,null,null,null,null,null,"）",null,null,null,null,null,null,null,null,null,null,null,null,null,null,null,null,null,null,null,null,null,null,null,null,null,null,null,null,null,null,null,null,null,null,null,null,null,null,null,null,null,null,null,null,null,null,null,null,null,null,null,null,"","（","）","","",""]
[null,null,null,"(ﾄ)重度身体障害者である\n　 短時間労働者の数",null,null,null,null,null,null,null,null,null,null,null,null,null,null,null,null,"人",null,null,null,null,null,null,null,null,null,"人",null,null,null,null,null,null,null,null,null,null,null,"人",null,null,null,null,null,null,null,null,null,null,"人",null,null,null,null,null,null,null,null,null,null,"人",null,null,null,null,null,null,null,null,null,null,null,null,null,null,null,null,null,null,null,null,null,null,null,null,null,null,null,null,null,null,null,null,null,null,null,null,null,null,null,null,null,null,null,null,null,null,null,null,null,null,null,null,{"$f":"M122&\"\"","v":""},{"$f":"V122&\"\"","v":"（"},{"$f":"AE122&\"\"","v":"）"},{"$f":"AN122&\"\"","v":""},{"$f":"AW122&\"\"","v":""},{"$f":"BF122&\"\"","v":""}]
[null,null,null,null,null,null,null,null,null,null,null,"（",null,null,null,null,null,null,null,null,"）","（",null,null,null,null,null,null,null,null,"）",null,"（",null,null,null,null,null,null,null,null,null,"）","（",null,null,null,null,null,null,null,null,null,"）",null,"（",null,null,null,null,null,null,null,null,"）",null,null,null,null,null,null,null,null,null,null,null,null,null,null,null,null,null,null,null,null,null,null,null,null,null,null,null,null,null,null,null,null,null,null,null,null,null,null,null,null,null,null,null,null,null,null,null,null,null,null,null,null,{"$f":"M125&\"\"","v":""},{"$f":"V125&\"\"","v":""},{"$f":"AE125&\"\"","v":"人"},{"$f":"AN125&\"\"","v":""},{"$f":"AW125&\"\"","v":""},{"$f":"BF125&\"\"","v":""}]
[null,null,null,"(ﾁ)重度身体障害者以外の身体障害\n   者である短時間労働者の数",null,null,null,null,null,null,null,null,null,null,null,null,null,null,null,null,"人",null,null,null,null,null,null,null,null,null,"人",null,null,null,null,null,null,null,null,null,null,null,"人",null,null,null,null,null,null,null,null,null,null,"人",null,null,null,null,null,null,null,null,null,null,"人",null,null,null,null,null,null,null,null,null,null,null,null,null,null,null,null,null,null,null,null,null,null,null,null,null,null,null,null,null,null,null,null,null,null,null,null,null,null,null,null,null,null,null,null,null,null,null,null,null,null,null,null,{"$f":"M115&\"\"","v":""},{"$f":"V115&\"\"","v":""},{"$f":"AE115&\"\"","v":"人"},{"$f":"AN115&\"\"","v":""},{"$f":"AW115&\"\"","v":""},{"$f":"BF115&\"\"","v":""}]
[null,null,null,null,null,null,null,null,null,null,null,"（",null,null,null,null,null,null,null,null,"）","（",null,null,null,null,null,null,null,null,"）",null,"（",null,null,null,null,null,null,null,null,null,"）","（",null,null,null,null,null,null,null,null,null,"）",null,"（",null,null,null,null,null,null,null,null,"）",null,null,null,null,null,null,null,null,null,null,null,null,null,null,null,null,null,null,null,null,null,null,null,null,null,null,null,null,null,null,null,null,null,null,null,null,null,null,null,null,null,null,null,null,null,null,null,null,null,null,null,null,"","（","）","","",""]
[null,null,null,"(ﾘ)重度身体障害者である\n   特定短時間労働者の数",null,null,null,null,null,null,null,null,null,null,null,null,null,null,null,null,"人",null,null,null,null,null,null,null,null,null,"人",null,null,null,null,null,null,null,null,null,null,null,"人",null,null,null,null,null,null,null,null,null,null,"人",null,null,null,null,null,null,null,null,null,null,"人",null,null,null,null,null,null,null,null,null,null,null,null,null,null,null,null,null,null,null,null,null,null,null,null,null,null,null,null,null,null,null,null,null,null,null,null,null,null,null,null,null,null,null,null,null,null,null,null,null,null,null,null,"","","人","","",""]
[null,null,null,null,null,null,null,null,null,null,null,"（",null,null,null,null,null,null,null,null,"）","（",null,null,null,null,null,null,null,null,"）",null,"（",null,null,null,null,null,null,null,null,null,"）","（",null,null,null,null,null,null,null,null,null,"）",null,"（",null,null,null,null,null,null,null,null,"）",null,null,null,null,null,null,null,null,null,null,null,null,null,null,null,null,null,null,null,null,null,null,null,null,null,null,null,null,null,null,null,null,null,null,null,null,null,null,null,null,null,null,null,null,null,null,null,null,null,null,null,null,"","（","）","","",""]
[null,null,null,"(ﾇ)身体障害者の数",null,null,null,null,null,null,null,null,{"$f":"(M109*2)+M111+M113+((M115+M117)*0.5)","v":0},null,null,null,null,null,null,null,"人",null,{"$f":"(W109*2)+W111+W113+((W115+W117)*0.5)","v":0},null,null,null,null,null,null,null,"人",null,null,{"$f":"(AH109*2)+AH111+AH113+((AH115+AH117)*0.5)","v":0},null,null,null,null,null,null,null,null,"人",null,{"$f":"(AS109*2)+AS111+AS113+((AS115+AS117)*0.5)","v":0},null,null,null,null,null,null,null,null,"人",null,null,{"$f":"(BE109*2)+BE111+BE113+((BE115+BE117)*0.5)","v":0},null,null,null,null,null,null,null,"人",null,null,null,null,null,null,null,null,null,null,null,null,null,null,null,null,null,null,null,null,null,null,null,null,null,null,null,null,null,null,null,null,null,null,null,null,null,null,null,null,null,null,null,null,null,null,null,null,null,null,null,null,"0","","人","","",""]
[null,null,null,"  ［(ﾎ×2)+ﾍ+ﾄ+((ﾁ+ﾘ)×0.5)］",null,null,null,null,null,null,null,"（",{"$f":"(M110*2)+M112+M114+((M116+M118)*0.5)","v":0},null,null,null,null,null,null,null,"）","（",{"$f":"(W110*2)+W112+W114+((W116+W118)*0.5)","v":0},null,null,null,null,null,null,null,"）",null,"（",{"$f":"(AH110*2)+AH112+AH114+((AH116+AH118)*0.5)","v":0},null,null,null,null,null,null,null,null,"）","（",{"$f":"(AS110*2)+AS112+AS114+((AS116+AS118)*0.5)","v":0},null,null,null,null,null,null,null,null,"）",null,"（",{"$f":"(BE110*2)+BE112+BE114+((BE116+BE118)*0.5)","v":0},null,null,null,null,null,null,null,"）",null,null,null,null,null,null,null,null,null,null,null,null,null,null,null,null,null,null,null,null,null,null,null,null,null,null,null,null,null,null,null,null,null,null,null,null,null,null,null,null,null,null,null,null,null,null,null,null,null,null,null,null,"0","（","）","","",""]
[null,null,null,"(ﾙ)重度知的障害者の数",null,null,null,null,null,null,null,null,null,null,null,null,null,null,null,null,"人",null,null,null,null,null,null,null,null,null,"人",null,null,null,null,null,null,null,null,null,null,null,"人",null,null,null,null,null,null,null,null,null,null,"人",null,null,null,null,null,null,null,null,null,null,"人",null,null,null,null,null,null,null,null,null,null,null,null,null,null,null,null,null,null,null,null,null,null,null,null,null,null,null,null,null,null,null,null,null,null,null,null,null,null,null,null,null,null,null,null,null,null,null,null,null,null,null,null,{"$f":"M121&\"\"","v":""},"","人","","",""]
[null,null,null,null,null,null,null,null,null,null,null,"（",null,null,null,null,null,null,null,null,"）","（",null,null,null,null,null,null,null,null,"）",null,"（",null,null,null,null,null,null,null,null,null,"）","（",null,null,null,null,null,null,null,null,null,"）",null,"（",null,null,null,null,null,null,null,null,"）",null,null,null,null,null,null,null,null,null,null,null,null,null,null,null,null,null,null,null,null,null,null,null,null,null,null,null,null,null,null,null,null,null,null,null,null,null,null,null,null,null,null,null,null,null,null,null,null,null,null,null,null,"","（","）","","",""]
[null,null,null,"(ｦ)重度知的障害者以外の\n   知的障害者の数",null,null,null,null,null,null,null,null,null,null,null,null,null,null,null,null,"人",null,null,null,null,null,null,null,null,null,"人",null,null,null,null,null,null,null,null,null,null,null,"人",null,null,null,null,null,null,null,null,null,null,"人",null,null,null,null,null,null,null,null,null,null,"人",null,null,null,null,null,null,null,null,null,null,null,null,null,null,null,null,null,null,null,null,null,null,null,null,null,null,null,null,null,null,null,null,null,null,null,null,null,null,null,null,null,null,null,null,null,null,null,null,null,null,null,null,{"$f":"M123&\"\"","v":""},"","人","","",""]
[null,null,null,null,null,null,null,null,null,null,null,"（",null,null,null,null,null,null,null,null,"）","（",null,null,null,null,null,null,null,null,"）",null,"（",null,null,null,null,null,null,null,null,null,"）","（",null,null,null,null,null,null,null,null,null,"）",null,"（",null,null,null,null,null,null,null,null,"）",null,null,null,null,null,null,null,null,null,null,null,null,null,null,null,null,null,null,null,null,null,null,null,null,null,null,null,null,null,null,null,null,null,null,null,null,null,null,null,null,null,null,null,null,null,null,null,null,null,null,null,null,"","（","）","","",""]
[null,null,null,"(ﾜ)重度知的障害者である\n   短時間労働者の数",null,null,null,null,null,null,null,null,null,null,null,null,null,null,null,null,"人",null,null,null,null,null,null,null,null,null,"人",null,null,null,null,null,null,null,null,null,null,null,"人",null,null,null,null,null,null,null,null,null,null,"人",null,null,null,null,null,null,null,null,null,null,"人",null,null,null,null,null,null,null,null,null,null,null,null,null,null,null,null,null,null,null,null,null,null,null,null,null,null,null,null,null,null,null,null,null,null,null,null,null,null,null,null,null,null,null,null,null,null,null,null,null,null,null,null,{"$f":"M125&\"\"","v":""},"","人","","",""]
[null,null,null,null,null,null,null,null,null,null,null,"（",null,null,null,null,null,null,null,null,"）","（",null,null,null,null,null,null,null,null,"）",null,"（",null,null,null,null,null,null,null,null,null,"）","（",null,null,null,null,null,null,null,null,null,"）",null,"（",null,null,null,null,null,null,null,null,"）",null,null,null,null,null,null,null,null,null,null,null,null,null,null,null,null,null,null,null,null,null,null,null,null,null,null,null,null,null,null,null,null,null,null,null,null,null,null,null,null,null,null,null,null,null,null,null,null,null,null,null,null,"","（","）","","",""]
[null,null,null,"(ｶ)重度知的障害者以外の知的障害\n   者である短時間労働者の数",null,null,null,null,null,null,null,null,null,null,null,null,null,null,null,null,"人",null,null,null,null,null,null,null,null,null,"人",null,null,null,null,null,null,null,null,null,null,null,"人",null,null,null,null,null,null,null,null,null,null,"人",null,null,null,null,null,null,null,null,null,null,"人",null,null,null,null,null,null,null,null,null,null,null,null,null,null,null,null,null,null,null,null,null,null,null,null,null,null,null,null,null,null,null,null,null,null,null,null,null,null,null,null,null,null,null,null,null,null,null,null,null,null,null,null,{"$f":"M127&\"\"","v":""},{"$f":"V127&\"\"","v":""},{"$f":"AE127&\"\"","v":"人"},{"$f":"AN127&\"\"","v":""},{"$f":"AW127&\"\"","v":""},{"$f":"BF127&\"\"","v":""}]
[null,null,null,null,null,null,null,null,null,null,null,"（",null,null,null,null,null,null,null,null,"）","（",null,null,null,null,null,null,null,null,"）",null,"（",null,null,null,null,null,null,null,null,null,"）","（",null,null,null,null,null,null,null,null,null,"）",null,"（",null,null,null,null,null,null,null,null,"）",null,null,null,null,null,null,null,null,null,null,null,null,null,null,null,null,null,null,null,null,null,null,null,null,null,null,null,null,null,null,null,null,null,null,null,null,null,null,null,null,null,null,null,null,null,null,null,null,null,null,null,null,{"$f":"M128&\"\"","v":""},"（","）","","",""]
[null,null,null,"(ﾖ)重度知的障害者である\n   特定短時間労働者の数",null,null,null,null,null,null,null,null,null,null,null,null,null,null,null,null,"人",null,null,null,null,null,null,null,null,null,"人",null,null,null,null,null,null,null,null,null,null,null,"人",null,null,null,null,null,null,null,null,null,null,"人",null,null,null,null,null,null,null,null,null,null,"人",null,null,null,null,null,null,null,null,null,null,null,null,null,null,null,null,null,null,null,null,null,null,null,null,null,null,null,null,null,null,null,null,null,null,null,null,null,null,null,null,null,null,null,null,null,null,null,null,null,null,null,null,{"$f":"M129&\"\"","v":""},"","人","","",""]
[null,null,null,null,null,null,null,null,null,null,null,"（",null,null,null,null,null,null,null,null,"）","（",null,null,null,null,null,null,null,null,"）",null,"（",null,null,null,null,null,null,null,null,null,"）","（",null,null,null,null,null,null,null,null,null,"）",null,"（",null,null,null,null,null,null,null,null,"）",null,null,null,null,null,null,null,null,null,null,null,null,null,null,null,null,null,null,null,null,null,null,null,null,null,null,null,null,null,null,null,null,null,null,null,null,null,null,null,null,null,null,null,null,null,null,null,null,null,null,null,null,"","（","）","","",""]
[null,null,null,"(ﾀ)知的障害者の数",null,null,null,null,null,null,null,null,{"$f":"(M121*2)+M123+M125+((M127+M129)*0.5)","v":0},null,null,null,null,null,null,null,"人",null,{"$f":"(W121*2)+W123+W125+((W127+W129)*0.5)","v":0},null,null,null,null,null,null,null,"人",null,null,{"$f":"(AH121*2)+AH123+AH125+((AH127+AH129)*0.5)","v":0},null,null,null,null,null,null,null,null,"人",null,{"$f":"(AS121*2)+AS123+AS125+((AS127+AS129)*0.5)","v":0},null,null,null,null,null,null,null,null,"人",null,null,{"$f":"(BE121*2)+BE123+BE125+((BE127+BE129)*0.5)","v":0},null,null,null,null,null,null,null,"人",null,null,null,null,null,null,null,null,null,null,null,null,null,null,null,null,null,null,null,null,null,null,null,null,null,null,null,null,null,null,null,null,null,null,null,null,null,null,null,null,null,null,null,null,null,null,null,null,null,null,null,null,{"$f":"M131&\"\"","v":"0"},"","人","","",""]
[null,null,null,"  ［(ﾙ×2)+ｦ+ﾜ+((ｶ+ﾖ)×0.5)］",null,null,null,null,null,null,null,"（",{"$f":"(M122*2)+M124+M126+((M128+M130)*0.5)","v":0},null,null,null,null,null,null,null,"）","（",{"$f":"(W122*2)+W124+W126+((W128+W130)*0.5)","v":0},null,null,null,null,null,null,null,"）",null,"（",{"$f":"(AH122*2)+AH124+AH126+((AH128+AH130)*0.5)","v":0},null,null,null,null,null,null,null,null,"）","（",{"$f":"(AS122*2)+AS124+AS126+((AS128+AS130)*0.5)","v":0},null,null,null,null,null,null,null,null,"）",null,"（",{"$f":"(BE122*2)+BE124+BE126+((BE128+BE130)*0.5)","v":0},null,null,null,null,null,null,null,"）",null,null,null,null,null,null,null,null,null,null,null,null,null,null,null,null,null,null,null,null,null,null,null,null,null,null,null,null,null,null,null,null,null,null,null,null,null,null,null,null,null,null,null,null,null,null,null,null,null,null,null,null,"0","（","）","","",""]
[null,null,null,"(ﾚ)精神障害者の数",null,null,null,null,null,null,null,null,null,null,null,null,null,null,null,null,"人",null,null,null,null,null,null,null,null,null,"人",null,null,null,null,null,null,null,null,null,null,null,"人",null,null,null,null,null,null,null,null,null,null,"人",null,null,null,null,null,null,null,null,null,null,"人",null,null,null,null,null,null,null,null,null,null,null,null,null,null,null,null,null,null,null,null,null,null,null,null,null,null,null,null,null,null,null,null,null,null,null,null,null,null,null,null,null,null,null,null,null,null,null,null,null,null,null,null,{"$f":"M133&\"\"","v":""},{"$f":"V133&\"\"","v":""},{"$f":"AE133&\"\"","v":"人"},{"$f":"AN133&\"\"","v":""},{"$f":"AW133&\"\"","v":""},{"$f":"BF133&\"\"","v":""}]
[null,null,null,null,null,null,null,null,null,null,null,"（",null,null,null,null,null,null,null,null,"）","（",null,null,null,null,null,null,null,null,"）",null,"（",null,null,null,null,null,null,null,null,null,"）","（",null,null,null,null,null,null,null,null,null,"）",null,"（",null,null,null,null,null,null,null,null,"）",null,null,null,null,null,null,null,null,null,null,null,null,null,null,null,null,null,null,null,null,null,null,null,null,null,null,null,null,null,null,null,null,null,null,null,null,null,null,null,null,null,null,null,null,null,null,null,null,null,null,null,null,{"$f":"M134&\"\"","v":""},{"$f":"V134&\"\"","v":"（"},{"$f":"AE134&\"\"","v":"）"},{"$f":"AN134&\"\"","v":""},{"$f":"AW134&\"\"","v":""},{"$f":"BF134&\"\"","v":""}]
[null,null,null,"(ｿ)精神障害者である\n   短時間労働者の数",null,null,null,null,null,null,null,null,null,null,null,null,null,null,null,null,"人",null,null,null,null,null,null,null,null,null,"人",null,null,null,null,null,null,null,null,null,null,null,"人",null,null,null,null,null,null,null,null,null,null,"人",null,null,null,null,null,null,null,null,null,null,"人",null,null,null,null,null,null,null,null,null,null,null,null,null,null,null,null,null,null,null,null,null,null,null,null,null,null,null,null,null,null,null,null,null,null,null,null,null,null,null,null,null,null,null,null,null,null,null,null,null,null,null,null,{"$f":"M135&\"\"","v":""},"","人","","",""]
[null,null,null,null,null,null,null,null,null,null,null,"（",null,null,null,null,null,null,null,null,"）","（",null,null,null,null,null,null,null,null,"）",null,"（",null,null,null,null,null,null,null,null,null,"）","（",null,null,null,null,null,null,null,null,null,"）",null,"（",null,null,null,null,null,null,null,null,"）",null,null,null,null,null,null,null,null,null,null,null,null,null,null,null,null,null,null,null,null,null,null,null,null,null,null,null,null,null,null,null,null,null,null,null,null,null,null,null,null,null,null,null,null,null,null,null,null,null,null,null,null,"","（","）","","",""]
[null,null,null,"(ﾂ)精神障害者である\n   特定短時間労働者の数",null,null,null,null,null,null,null,null,null,null,null,null,null,null,null,null,"人",null,null,null,null,null,null,null,null,null,"人",null,null,null,null,null,null,null,null,null,null,null,"人",null,null,null,null,null,null,null,null,null,null,"人",null,null,null,null,null,null,null,null,null,null,"人",null,null,null,null,null,null,null,null,null,null,null,null,null,null,null,null,null,null,null,null,null,null,null,null,null,null,null,null,null,null,null,null,null,null,null,null,null,null,null,null,null,null,null,null,null,null,null,null,null,null,null,null,null,null,null,null,null,{"$f":"M137&\"\"","v":""},{"$f":"V137&\"\"","v":""},{"$f":"AE137&\"\"","v":"人"},{"$f":"AN137&\"\"","v":""},{"$f":"AW137&\"\"","v":""},{"$f":"BF137&\"\"","v":""}]
[null,null,null,null,null,null,null,null,null,null,null,"（",null,null,null,null,null,null,null,null,"）","（",null,null,null,null,null,null,null,null,"）",null,"（",null,null,null,null,null,null,null,null,null,"）","（",null,null,null,null,null,null,null,null,null,"）",null,"（",null,null,null,null,null,null,null,null,"）",null,null,null,null,null,null,null,null,null,null,null,null,null,null,null,null,null,null,null,null,null,null,null,null,null,null,null,null,null,null,null,null,null,null,null,null,null,null,null,null,null,null,null,null,null,null,null,null,null,null,null,null,null,null,null,null,null,"","（","）","","",""]
[null,null,null,"(ﾈ)精神障害者の数",null,null,null,null,null,null,null,null,{"$f":"M133+M135+M137*0.5","v":0},null,null,null,null,null,null,null,"人",null,{"$f":"W133+W135+W137*0.5","v":0},null,null,null,null,null,null,null,"人",null,null,{"$f":"AH133+AH135+AH137*0.5","v":0},null,null,null,null,null,null,null,null,"人",null,{"$f":"AS133+AS135+AS137*0.5","v":0},null,null,null,null,null,null,null,null,"人",null,null,{"$f":"BE133+BE135+BE137*0.5","v":0},null,null,null,null,null,null,null,"人",null,null,null,null,null,null,null,null,null,null,null,null,null,null,null,null,null,null,null,null,null,null,null,null,null,null,null,null,null,null,null,null,null,null,null,null,null,null,null,null,null,null,null,null,null,null,null,null,null,null,null,null,{"$f":"M139&\"\"","v":"0"},"","人","","",""]
[null,null,null,"　［ﾚ+ｿ+(ﾂ×0.5)］",null,null,null,null,null,null,null,"（",{"$f":"M134+M136+M138*0.5","v":0},null,null,null,null,null,null,null,"）","（",{"$f":"W134+W136+W138*0.5","v":0},null,null,null,null,null,null,null,"）",null,"（",{"$f":"AH134+AH136+AH138*0.5","v":0},null,null,null,null,null,null,null,null,"）","（",{"$f":"AS134+AS136+AS138*0.5","v":0},null,null,null,null,null,null,null,null,"）",null,"（",{"$f":"BE134+BE136+BE138*0.5","v":0},null,null,null,null,null,null,null,"）",null,null,null,null,null,null,null,null,null,null,null,null,null,null,null,null,null,null,null,null,null,null,null,null,null,null,null,null,null,null,null,null,null,null,null,null,null,null,null,null,null,null,null,null,null,null,null,null,null,null,null,null,"0","（","）","","",""]
[null,null,"(11)　　　     計",null,null,null,null,null,null,null,null,null,{"$f":"M119+M131+M139","v":0},null,null,null,null,null,null,null,"人",null,{"$f":"W119+W131+W139","v":0},null,null,null,null,null,null,null,"人",null,null,{"$f":"AH119+AH131+AH139","v":0},null,null,null,null,null,null,null,null,"人",null,{"$f":"AS119+AS131+AS139","v":0},null,null,null,null,null,null,null,null,"人",null,null,{"$f":"BE119+BE131+BE139","v":0},null,null,null,null,null,null,null,"人",null,null,null,null,null,null,null,null,null,null,null,null,null,null,null,null,null,null,null,null,null,null,null,null,null,null,null,null,null,null,null,null,null,null,null,null,null,null,null,null,null,null,null,null,null,null,null,null,null,null,null,null,{"$f":"M141&\"\"","v":"0"},"","人","","",""]
[null,null,"  　［(10)のﾇ+(10)のﾀ+(10)のﾈ］",null,null,null,null,null,null,null,null,"（",{"$f":"M120+M132+M140","v":0},null,null,null,null,null,null,null,"）","（",{"$f":"W120+W132+W140","v":0},null,null,null,null,null,null,null,"）",null,"（",{"$f":"AH120+AH132+AH140","v":0},null,null,null,null,null,null,null,null,"）","（",{"$f":"AS120+AS132+AS140","v":0},null,null,null,null,null,null,null,null,"）",null,"（",{"$f":"BE120+BE132+BE140","v":0},null,null,null,null,null,null,null,"）",null,null,null,null,null,null,null,null,null,null,null,null,null,null,null,null,null,null,null,null,null,null,null,null,null,null,null,null,null,null,null,null,null,null,null,null,null,null,null,null,null,null,null,null,null,null,null,null,null,null,null,null,"0","（","）","","",""]
[null,"Ｄ　障害者の雇用の促進等に関する法律別表に掲げる種類別の身体障害者数"]
[null,"視覚障害者（第１号に該当する者）",null,null,null,null,null,null,null,null,null,null,null,null,null,null,null,null,null,null,"人",null,null,null,null,null,null,null,null,null,"人",null,null,null,null,null,null,null,null,null,null,null,"人",null,null,null,null,null,null,null,null,null,null,"人",null,null,null,null,null,null,null,null,null,null,"人"]
[null,"聴覚又は平衡機能障害者\n（第２号に該当する者）",null,null,null,null,null,null,null,null,null,null,null,null,null,null,null,null,null,null,"人",null,null,null,null,null,null,null,null,null,"人",null,null,null,null,null,null,null,null,null,null,null,"人",null,null,null,null,null,null,null,null,null,null,"人",null,null,null,null,null,null,null,null,null,null,"人"]
[null,"音声・言語・そしゃく機能障害者\n（第３号に該当する者）",null,null,null,null,null,null,null,null,null,null,null,null,null,null,null,null,null,null,"人",null,null,null,null,null,null,null,null,null,"人",null,null,null,null,null,null,null,null,null,null,null,"人",null,null,null,null,null,null,null,null,null,null,"人",null,null,null,null,null,null,null,null,null,null,"人"]
[null,"肢体不自由者（第４号に該当する者）",null,null,null,null,null,null,null,null,null,null,null,null,null,null,null,null,null,null,"人",null,null,null,null,null,null,null,null,null,"人",null,null,null,null,null,null,null,null,null,null,null,"人",null,null,null,null,null,null,null,null,null,null,"人",null,null,null,null,null,null,null,null,null,null,"人"]
[null,"内部障害者（第５号に該当する者）",null,null,null,null,null,null,null,null,null,null,null,null,null,null,null,null,null,null,"人",null,null,null,null,null,null,null,null,null,"人",null,null,null,null,null,null,null,null,null,null,null,"人",null,null,null,null,null,null,null,null,null,null,"人",null,null,null,null,null,null,null,null,null,null,"人"]
[]
[]
[]
[]
[]
[]
[null,""]

{"sheet":"様式第６号の３(2)　（裏面）","index":1,"n_rows":0,"n_cols":0,"rows_kept":0,"cut":false,"hidden":false,"merged":[]}

{"sheet":"添付","index":2,"n_rows":72,"n_cols":118,"rows_kept":72,"cut":false,"hidden":true,"merged":[[63,33,63,41],[63,44,63,52],[63,53,63,54],[63,56,63,63],[64,12,64,19],[64,22,64,29],[64,30,64,31],[64,33,64,41],[64,44,64,52],[64,53,64,54],[64,56,64,63],[61,30,61,31],[61,33,61,41],[61,44,61,52],[61,53,61,54],[61,56,61,63],[62,12,62,19],[62,22,62,29],[62,30,62,31],[62,33,62,41],[62,44,62,52],[62,53,62,54],[62,56,62,63],[57,12,57,19],[57,22,57,29],[57,30,57,31],[57,33,57,41],[57,44,57,52],[57,53,57,54],[57,56,57,63],[58,12,58,19],[58,22,58,29],[58,30,58,31],[58,33,58,41],[58,44,58,52],[58,53,58,54],[58,56,58,63],[55,44,55,52],[55,53,55,54],[55,56,55,63],[56,12,56,19],[56,22,56,29],[56,30,56,31],[56,33,56,41],[56,44,56,52],[56,53,56,54],[56,56,56,63],[52,30,52,31],[52,33,52,41],[52,44,52,52],[52,53,52,54],[52,56,52,63],[53,12,53,19],[53,22,53,29],[53,30,53,31],[53,33,53,41],[53,44,53,52],[53,53,53,54],[53,56,53,63],[48,56,48,63],[50,12,50,19],[50,22,50,29],[50,30,50,31],[50,33,50,41],[50,44,50,52],[50,53,50,54],[50,56,50,63],[51,12,51,19],[51,22,51,29],[51,30,51,31],[51,33,51,41],[51,44,51,52],[51,53,51,54],[51,56,51,63],[45,56,45,63],[46,56,46,63],[47,12,47,19],[47,22,47,29],[47,30,47,31],[47,33,47,41],[47,44,47,52],[47,53,47,54],[47,56,47,63],[37,56,37,63],[38,12,38,19],[38,22,38,29],[38,30,38,31],[38,33,38,41],[38,44,38,52],[38,53,38,54],[38,56,38,63],[40,44,40,52],[40,53,40,54],[40,56,40,63],[39,44,39,52],[39,53,39,54],[39,56,39,63],[27,22,27,29],[27,30,27,31],[27,33,27,41],[37,12,37,19],[37,22,37,29],[37,30,37,31],[37,33,37,41],[37,44,37,52],[37,53,37,54],[31,12,31,19],[31,22,31,29],[31,30,31,31],[31,33,31,41],[31,44,31,52],[31,53,31,54],[43,3,44,10],[43,12,43,19],[43,22,43,29],[43,30,43,31],[43,33,43,41],[43,44,43,52],[43,53,43,54],[43,56,43,63],[44,12,44,19],[44,22,44,29],[44,30,44,31],[44,33,44,41],[44,44,44,52],[44,53,44,54],[44,56,44,63],[31,3,32,10],[35,12,35,19],[35,22,35,29],[35,30,35,31],[35,33,35,41],[35,44,35,52],[35,53,35,54],[35,56,35,63],[36,12,36,19],[32,56,32,63],[33,12,33,19],[33,22,33,29],[33,30,33,31],[33,33,33,41],[33,44,33,52],[33,53,33,54],[33,56,33,63],[34,12,34,19],[34,22,34,29],[34,30,34,31],[34,33,34,41],[32,12,32,19],[32,22,32,29],[32,30,32,31],[31,56,31,63],[36,44,36,52],[36,53,36,54],[36,56,36,63],[32,33,32,41],[32,44,32,52],[32,53,32,54],[22,33,22,41],[22,44,22,52],[22,53,22,54],[22,56,22,63],[34,44,34,52],[34,53,34,54],[34,56,34,63],[30,44,30,52],[30,53,30,54],[30,56,30,63],[25,33,25,41],[25,44,25,52],[25,53,25,54],[25,56,25,63],[26,33,26,41],[26,44,26,52],[26,53,26,54],[26,56,26,63],[20,33,20,41],[20,44,20,52],[20,53,20,54],[20,56,20,63],[21,12,21,19],[21,22,21,29],[21,30,21,31],[21,33,21,41],[21,44,21,52],[21,53,21,54],[21,56,21,63],[13,32,16,42],[13,43,16,54],[13,55,16,64],[19,12,19,19],[19,22,19,29],[19,30,19,31],[19,33,19,41],[19,44,19,52],[19,53,19,54],[19,56,19,63],[6,58,6,61],[6,63,6,64],[7,11,8,20],[7,21,8,31],[7,32,8,42],[7,43,8,54],[7,55,8,64],[9,11,12,20],[9,21,12,31],[9,32,12,42],[9,43,12,54],[9,55,12,64],[54,12,54,19],[54,22,54,29],[54,30,54,31],[54,33,54,41],[54,44,54,52],[54,53,54,54],[54,56,54,63],[53,3,54,10],[65,20,68,64],[66,2,66,10],[67,2,68,10],[67,11,68,18],[67,19,68,19],[56,3,56,10],[64,1,64,10],[62,1,62,10],[63,1,63,10],[63,12,63,19],[63,22,63,29],[63,30,63,31],[55,12,55,19],[55,22,55,29],[55,30,55,31],[55,33,55,41],[5,1,58,1],[9,2,12,10],[65,2,65,10],[65,11,66,18],[7,2,8,10],[13,2,16,10],[19,3,19,10],[65,19,66,19],[5,2,5,10],[5,11,5,64],[6,2,6,10],[6,11,6,12],[6,14,6,17],[6,19,6,20],[6,21,6,23],[6,25,6,28],[6,30,6,31],[6,32,6,34],[6,36,6,38],[6,40,6,42],[6,43,6,45],[6,47,6,50],[6,52,6,54],[6,55,6,56],[20,3,20,10],[13,11,16,20],[13,21,16,31],[22,3,22,10],[21,3,21,10],[25,3,26,10],[20,12,20,19],[20,22,20,29],[20,30,20,31],[22,12,22,19],[22,22,22,29],[22,30,22,31],[25,12,25,19],[25,22,25,29],[25,30,25,31],[26,12,26,19],[26,22,26,29],[26,30,26,31],[27,3,28,10],[28,12,28,19],[28,22,28,29],[28,30,28,31],[28,33,28,41],[28,44,28,52],[28,53,28,54],[28,56,28,63],[29,3,30,10],[29,12,29,19],[29,22,29,29],[29,30,29,31],[29,33,29,41],[29,44,29,52],[29,53,29,54],[29,56,29,63],[30,12,30,19],[30,22,30,29],[30,30,30,31],[30,33,30,41],[27,44,27,52],[27,53,27,54],[27,56,27,63],[27,12,27,19],[33,3,34,10],[36,3,36,10],[35,3,35,10],[36,22,36,29],[36,30,36,31],[36,33,36,41],[37,3,38,10],[39,3,40,10],[39,12,39,19],[39,22,39,29],[39,30,39,31],[39,33,39,41],[40,12,40,19],[40,22,40,29],[40,30,40,31],[40,33,40,41],[41,3,42,10],[42,12,42,19],[42,22,42,29],[42,30,42,31],[42,33,42,41],[42,44,42,52],[42,53,42,54],[42,56,42,63],[41,12,41,19],[41,22,41,29],[41,30,41,31],[41,33,41,41],[41,44,41,52],[41,53,41,54],[41,56,41,63],[51,3,52,10],[45,3,46,10],[46,12,46,19],[46,22,46,29],[46,30,46,31],[46,33,46,41],[46,44,46,52],[46,53,46,54],[48,3,48,10],[47,3,47,10],[45,12,45,19],[45,22,45,29],[45,30,45,31],[45,33,45,41],[45,44,45,52],[45,53,45,54],[48,12,48,19],[48,22,48,29],[48,30,48,31],[48,33,48,41],[48,44,48,52],[48,53,48,54],[52,12,52,19],[52,22,52,29],[1,15,3,47],[58,2,58,10],[57,2,57,10],[59,1,59,64],[60,1,60,10],[61,1,61,10],[60,12,60,19],[60,22,60,29],[60,30,60,31],[60,33,60,41],[60,44,60,52],[60,53,60,54],[60,56,60,63],[61,12,61,19],[61,22,61,29],[49,3,50,10],[49,12,49,19],[49,22,49,29],[49,30,49,31],[49,33,49,41],[49,44,49,52],[49,53,49,54],[49,56,49,63],[55,3,55,10]]}
[]
[null,null,null,null,null,null,null,null,null,null,null,null,null,null,null,"障害者雇用状況報告書\n（法第45条の２の認定を受けた事業主用、グループ全体）"]
[]
[]
[]
[null,"　Ｂ　雇用の状況","区     分",null,null,null,null,null,null,null,null,"Ｃ　事　業　主　ご　と　の　内　訳"]
[null,null,"(5)適用事業所番号",null,null,null,null,null,null,null,null,null,null,"―",null,null,null,null,"―",null,null,null,null,null,"―",null,null,null,null,"―",null,null,null,null,null,"―",null,null,null,"―",null,null,null,null,null,null,"―",null,null,null,null,"―",null,null,null,null,null,"―",null,null,null,null,"―",null,null,null,null,null,null,null,null,null,null,null,null,null,null,null,null,null,null,null,null,null,null,null,null,null,null,null,null,null,null,null,null,null,null,null,null,null,null,null,null,null,null,null,null,null,null,null,null,null,{"$f":"L7&\"\"","v":""},{"$f":"U7&\"\"","v":""},{"$f":"AD7&\"\"","v":"―"},{"$f":"AM7&\"\"","v":""},{"$f":"AV7&\"\"","v":""},{"$f":"BE7&\"\"","v":""}]
[null,null,"(6)親事業主・関係子会社の別",null,null,null,null,null,null,null,null,null,null,null,null,null,null,null,null,null,null,null,null,null,null,null,null,null,null,null,null,null,null,null,null,null,null,null,null,null,null,null,null,null,null,null,null,null,null,null,null,null,null,null,null,null,null,null,null,null,null,null,null,null,null,null,null,null,null,null,null,null,null,null,null,null,null,null,null,null,null,null,null,null,null,null,null,null,null,null,null,null,null,null,null,null,null,null,null,null,null,null,null,null,null,null,null,null,null,null,null,null,{"$f":"O7&\"\"","v":""},{"$f":"X7&\"\"","v":""},{"$f":"AG7&\"\"","v":""},{"$f":"AP7&\"\"","v":""},{"$f":"AY7&\"\"","v":""},{"$f":"BH7&\"\"","v":""}]
[null,null,null,null,null,null,null,null,null,null,null,null,null,null,null,null,null,null,null,null,null,null,null,null,null,null,null,null,null,null,null,null,null,null,null,null,null,null,null,null,null,null,null,null,null,null,null,null,null,null,null,null,null,null,null,null,null,null,null,null,null,null,null,null,null,null,null,null,null,null,null,null,null,null,null,null,null,null,null,null,null,null,null,null,null,null,null,null,null,null,null,null,null,null,null,null,null,null,null,null,null,null,null,null,null,null,null,null,null,null,null,null,{"$f":"T7&\"\"","v":""},{"$f":"AC7&\"\"","v":""},{"$f":"AL7&\"\"","v":""},{"$f":"AU7&\"\"","v":"―"},{"$f":"BD7&\"\"","v":""},{"$f":"BM7&\"\"","v":""}]
[null,null,"(7)名称及び代表者の氏名",null,null,null,null,null,null,null,null,null,null,null,null,null,null,null,null,null,null,null,null,null,null,null,null,null,null,null,null,null,null,null,null,null,null,null,null,null,null,null,null,null,null,null,null,null,null,null,null,null,null,null,null,null,null,null,null,null,null,null,null,null,null,null,null,null,null,null,null,null,null,null,null,null,null,null,null,null,null,null,null,null,null,null,null,null,null,null,null,null,null,null,null,null,null,null,null,null,null,null,null,null,null,null,null,null,null,null,null,null,{"$f":"L8&\"\"","v":""},{"$f":"U8&\"\"","v":""},{"$f":"AD8&\"\"","v":""},{"$f":"AM8&\"\"","v":""},{"$f":"AV8&\"\"","v":""},{"$f":"BE8&\"\"","v":""}]
[]
[null,null,null,null,null,null,null,null,null,null,null,null,null,null,null,null,null,null,null,null,null,null,null,null,null,null,null,null,null,null,null,null,null,null,null,null,null,null,null,null,null,null,null,null,null,null,null,null,null,null,null,null,null,null,null,null,null,null,null,null,null,null,null,null,null,null,null,null,null,null,null,null,null,null,null,null,null,null,null,null,null,null,null,null,null,null,null,null,null,null,null,null,null,null,null,null,null,null,null,null,null,null,null,null,null,null,null,null,null,null,null,null,{"$f":"L10&\"\"","v":""},{"$f":"U10&\"\"","v":""},{"$f":"AD10&\"\"","v":""},{"$f":"AM10&\"\"","v":""},{"$f":"AV10&\"\"","v":""},{"$f":"BE10&\"\"","v":""}]
[]
[null,null,"(8)主たる事業所の所在地",null,null,null,null,null,null,null,null,null,null,null,null,null,null,null,null,null,null,null,null,null,null,null,null,null,null,null,null,null,null,null,null,null,null,null,null,null,null,null,null,null,null,null,null,null,null,null,null,null,null,null,null,null,null,null,null,null,null,null,null,null,null,null,null,null,null,null,null,null,null,null,null,null,null,null,null,null,null,null,null,null,null,null,null,null,null,null,null,null,null,null,null,null,null,null,null,null,null,null,null,null,null,null,null,null,null,null,null,null,{"$f":"L14&\"\"","v":""},{"$f":"U14&\"\"","v":""},{"$f":"AD14&\"\"","v":""},{"$f":"AM14&\"\"","v":""},{"$f":"AV14&\"\"","v":""},{"$f":"BE14&\"\"","v":""}]
[]
[]
[]
[null,null,"(9)常用雇用労働者の数"]
[]
[null,null,null,"(ｲ)常用雇用労働者の数",null,null,null,null,null,null,null,null,null,null,null,null,null,null,null,null,"人",null,null,null,null,null,null,null,null,null,"人",null,null,null,null,null,null,null,null,null,null,null,"人",null,null,null,null,null,null,null,null,null,null,"人",null,null,null,null,null,null,null,null,null,null,"人",null,{"$f":"M20+W20+AH20+AS20+BE20","v":0},{"$f":"M21+W21+AH21+AS21+BE21","v":0},{"$f":"M23+W23+AH23+AS23+BE23","v":0},{"$f":"M26+W26+AH26+AS26+BE26","v":0},{"$f":"M27+W27+AH27+AS27+BE27","v":0},{"$f":"M28+W28+AH28+AS28+BE28","v":0},{"$f":"M29+W29+AH29+AS29+BE29","v":0},{"$f":"M30+W30+AH30+AS30+BE30","v":0},{"$f":"M31+W31+AH31+AS31+BE31","v":0},{"$f":"M32+W32+AH32+AS32+BE32","v":0},{"$f":"M33+W33+AH33+AS33+BE33","v":0},{"$f":"M34+W34+AH34+AS34+BE34","v":0},{"$f":"M35+W35+AH35+AS35+BE35","v":0},{"$f":"M38+W38+AH38+AS38+BE38","v":0},{"$f":"M39+W39+AH39+AS39+BE39","v":0},{"$f":"M40+W40+AH40+AS40+BE40","v":0},{"$f":"M41+W41+AH41+AS41+BE41","v":0},{"$f":"M42+W42+AH42+AS42+BE42","v":0},{"$f":"M43+W43+AH43+AS43+BE43","v":0},{"$f":"M44+W44+AH44+AS44+BE44","v":0},{"$f":"M45+W45+AH45+AS45+BE45","v":0},{"$f":"M46+W46+AH46+AS46+BE46","v":0},{"$f":"M47+W47+AH47+AS47+BE47","v":0},{"$f":"M50+W50+AH50+AS50+BE50","v":0},{"$f":"M51+W51+AH51+AS51+BE51","v":0},{"$f":"M52+W52+AH52+AS52+BE52","v":0},{"$f":"M53+W53+AH53+AS53+BE53","v":0},{"$f":"M54+W54+AH54+AS54+BE54","v":0},{"$f":"M55+W55+AH55+AS55+BE55","v":0},{"$f":"M61+W61+AH61+AS61+BE61","v":0},{"$f":"M62+W62+AH62+AS62+BE62","v":0},{"$f":"M63+W63+AH63+AS63+BE63","v":0},{"$f":"M64+W64+AH64+AS64+BE64","v":0},{"$f":"M65+W65+AH65+AS65+BE65","v":0},null,null,null,null,null,null,null,null,null,null,null,null,{"$f":"M20&\"\"","v":""},{"$f":"V20&\"\"","v":""},{"$f":"AE20&\"\"","v":"人"},{"$f":"AN20&\"\"","v":""},{"$f":"AW20&\"\"","v":""},{"$f":"BF20&\"\"","v":""}]
[null,null,null,"(ﾛ)短時間労働者の数",null,null,null,null,null,null,null,null,null,null,null,null,null,null,null,null,"人",null,null,null,null,null,null,null,null,null,"人",null,null,null,null,null,null,null,null,null,null,null,"人",null,null,null,null,null,null,null,null,null,null,"人",null,null,null,null,null,null,null,null,null,null,"人",null,null,null,null,null,null,null,null,null,null,null,null,null,null,null,null,null,null,null,null,null,null,null,null,null,null,null,null,null,null,null,null,null,null,null,null,null,null,null,null,null,null,null,null,null,null,null,{"$f":"M21&\"\"","v":""},{"$f":"V21&\"\"","v":""},{"$f":"AE21&\"\"","v":"人"},{"$f":"AN21&\"\"","v":""},{"$f":"AW21&\"\"","v":""},{"$f":"BF21&\"\"","v":""}]
[null,null,null,"(ﾊ)常用雇用労働者の数［ｲ+(ﾛ×0.5)］",null,null,null,null,null,null,null,null,{"$f":"M20+M21*0.5","v":0},null,null,null,null,null,null,null,"人",null,{"$f":"W20+W21*0.5","v":0},null,null,null,null,null,null,null,"人",null,null,{"$f":"AH20+AH21*0.5","v":0},null,null,null,null,null,null,null,null,"人",null,{"$f":"AS20+AS21*0.5","v":0},null,null,null,null,null,null,null,null,"人",null,null,{"$f":"BE20+BE21*0.5","v":0},null,null,null,null,null,null,null,"人",null,null,null,null,null,null,null,null,null,null,null,null,null,null,null,null,null,null,null,null,null,null,null,null,null,null,null,null,null,null,null,null,null,null,null,null,null,null,null,null,null,null,null,null,null,null,null,{"$f":"M22&\"\"","v":"0"},{"$f":"V22&\"\"","v":""},{"$f":"AE22&\"\"","v":"人"},{"$f":"AN22&\"\"","v":""},{"$f":"AW22&\"\"","v":""},{"$f":"BF22&\"\"","v":""}]
[null,null,null,"(ﾆ)法定雇用障害者の算定の基礎と\n   なる労働者の数",null,null,null,null,null,null,null,null,null,null,null,null,null,null,null,null,"人",null,null,null,null,null,null,null,null,null,"人",null,null,null,null,null,null,null,null,null,null,null,"人",null,null,null,null,null,null,null,null,null,null,"人",null,null,null,null,null,null,null,null,null,null,"人",null,null,null,null,null,null,null,null,null,null,null,null,null,null,null,null,null,null,null,null,null,null,null,null,null,null,null,null,null,null,null,null,null,null,null,null,null,null,null,null,null,null,null,null,null,null,null,{"$f":"M23&\"\"","v":""},{"$f":"V23&\"\"","v":""},{"$f":"AE23&\"\"","v":"人"},{"$f":"AN23&\"\"","v":""},{"$f":"AW23&\"\"","v":""},{"$f":"BF23&\"\"","v":""}]
[null,null,"(10)常用雇用身体障害者、知的障害者及び精神障害者の数"]
[]
[null,null,null,"(ﾎ)重度身体障害者の数",null,null,null,null,null,null,null,null,null,null,null,null,null,null,null,null,"人",null,null,null,null,null,null,null,null,null,"人",null,null,null,null,null,null,null,null,null,null,null,"人",null,null,null,null,null,null,null,null,null,null,"人",null,null,null,null,null,null,null,null,null,null,"人",null,null,null,null,null,null,null,null,null,null,null,null,null,null,null,null,null,null,null,null,null,null,null,null,null,null,null,null,null,null,null,null,null,null,null,null,null,null,null,null,null,null,null,null,null,null,null,{"$f":"M26&\"\"","v":""},{"$f":"V26&\"\"","v":""},{"$f":"AE26&\"\"","v":"人"},{"$f":"AN26&\"\"","v":""},{"$f":"AW26&\"\"","v":""},{"$f":"BF26&\"\"","v":""}]
[null,null,null,null,null,null,null,null,null,null,null,"（",null,null,null,null,null,null,null,null,"）","（",null,null,null,null,null,null,null,null,"）",null,"（",null,null,null,null,null,null,null,null,null,"）","（",null,null,null,null,null,null,null,null,null,"）",null,"（",null,null,null,null,null,null,null,null,"）",null,null,null,null,null,null,null,null,null,null,null,null,null,null,null,null,null,null,null,null,null,null,null,null,null,null,null,null,null,null,null,null,null,null,null,null,null,null,null,null,null,null,null,null,null,null,null,{"$f":"M27&\"\"","v":""},{"$f":"V27&\"\"","v":"（"},{"$f":"AE27&\"\"","v":"）"},{"$f":"AN27&\"\"","v":""},{"$f":"AW27&\"\"","v":""},{"$f":"BF27&\"\"","v":""}]
[null,null,null,"(ﾍ)重度身体障害者以外の\n   身体障害者の数",null,null,null,null,null,null,null,null,null,null,null,null,null,null,null,null,"人",null,null,null,null,null,null,null,null,null,"人",null,null,null,null,null,null,null,null,null,null,null,"人",null,null,null,null,null,null,null,null,null,null,"人",null,null,null,null,null,null,null,null,null,null,"人",null,null,null,null,null,null,null,null,null,null,null,null,null,null,null,null,null,null,null,null,null,null,null,null,null,null,null,null,null,null,null,null,null,null,null,null,null,null,null,null,null,null,null,null,null,null,null,"","","人","","",""]
[null,null,null,null,null,null,null,null,null,null,null,"（",null,null,null,null,null,null,null,null,"）","（",null,null,null,null,null,null,null,null,"）",null,"（",null,null,null,null,null,null,null,null,null,"）","（",null,null,null,null,null,null,null,null,null,"）",null,"（",null,null,null,null,null,null,null,null,"）",null,null,null,null,null,null,null,null,null,null,null,null,null,null,null,null,null,null,null,null,null,null,null,null,null,null,null,null,null,null,null,null,null,null,null,null,null,null,null,null,null,null,null,null,null,null,null,"","（","）","","",""]
[null,null,null,"(ﾄ)重度身体障害者である\n　 短時間労働者の数",null,null,null,null,null,null,null,null,null,null,null,null,null,null,null,null,"人",null,null,null,null,null,null,null,null,null,"人",null,null,null,null,null,null,null,null,null,null,null,"人",null,null,null,null,null,null,null,null,null,null,"人",null,null,null,null,null,null,null,null,null,null,"人",null,null,null,null,null,null,null,null,null,null,null,null,null,null,null,null,null,null,null,null,null,null,null,null,null,null,null,null,null,null,null,null,null,null,null,null,null,null,null,null,null,null,null,null,null,null,null,{"$f":"M39&\"\"","v":""},{"$f":"V39&\"\"","v":"（"},{"$f":"AE39&\"\"","v":"）"},{"$f":"AN39&\"\"","v":""},{"$f":"AW39&\"\"","v":""},{"$f":"BF39&\"\"","v":""}]
[null,null,null,null,null,null,null,null,null,null,null,"（",null,null,null,null,null,null,null,null,"）","（",null,null,null,null,null,null,null,null,"）",null,"（",null,null,null,null,null,null,null,null,null,"）","（",null,null,null,null,null,null,null,null,null,"）",null,"（",null,null,null,null,null,null,null,null,"）",null,null,null,null,null,null,null,null,null,null,null,null,null,null,null,null,null,null,null,null,null,null,null,null,null,null,null,null,null,null,null,null,null,null,null,null,null,null,null,null,null,null,null,null,null,null,null,{"$f":"M42&\"\"","v":""},{"$f":"V42&\"\"","v":""},{"$f":"AE42&\"\"","v":"人"},{"$f":"AN42&\"\"","v":""},{"$f":"AW42&\"\"","v":""},{"$f":"BF42&\"\"","v":""}]
[null,null,null,"(ﾁ)重度身体障害者以外の身体障害\n   者である短時間労働者の数",null,null,null,null,null,null,null,null,null,null,null,null,null,null,null,null,"人",null,null,null,null,null,null,null,null,null,"人",null,null,null,null,null,null,null,null,null,null,null,"人",null,null,null,null,null,null,null,null,null,null,"人",null,null,null,null,null,null,null,null,null,null,"人",null,null,null,null,null,null,null,null,null,null,null,null,null,null,null,null,null,null,null,null,null,null,null,null,null,null,null,null,null,null,null,null,null,null,null,null,null,null,null,null,null,null,null,null,null,null,null,{"$f":"M32&\"\"","v":""},{"$f":"V32&\"\"","v":""},{"$f":"AE32&\"\"","v":"人"},{"$f":"AN32&\"\"","v":""},{"$f":"AW32&\"\"","v":""},{"$f":"BF32&\"\"","v":""}]
[null,null,null,null,null,null,null,null,null,null,null,"（",null,null,null,null,null,null,null,null,"）","（",null,null,null,null,null,null,null,null,"）",null,"（",null,null,null,null,null,null,null,null,null,"）","（",null,null,null,null,null,null,null,null,null,"）",null,"（",null,null,null,null,null,null,null,null,"）",null,null,null,null,null,null,null,null,null,null,null,null,null,null,null,null,null,null,null,null,null,null,null,null,null,null,null,null,null,null,null,null,null,null,null,null,null,null,null,null,null,null,null,null,null,null,null,"","（","）","","",""]
[null,null,null,"(ﾘ)重度身体障害者である\n   特定短時間労働者の数",null,null,null,null,null,null,null,null,null,null,null,null,null,null,null,null,"人",null,null,null,null,null,null,null,null,null,"人",null,null,null,null,null,null,null,null,null,null,null,"人",null,null,null,null,null,null,null,null,null,null,"人",null,null,null,null,null,null,null,null,null,null,"人",null,null,null,null,null,null,null,null,null,null,null,null,null,null,null,null,null,null,null,null,null,null,null,null,null,null,null,null,null,null,null,null,null,null,null,null,null,null,null,null,null,null,null,null,null,null,null,"","","人","","",""]
[null,null,null,null,null,null,null,null,null,null,null,"（",null,null,null,null,null,null,null,null,"）","（",null,null,null,null,null,null,null,null,"）",null,"（",null,null,null,null,null,null,null,null,null,"）","（",null,null,null,null,null,null,null,null,null,"）",null,"（",null,null,null,null,null,null,null,null,"）",null,null,null,null,null,null,null,null,null,null,null,null,null,null,null,null,null,null,null,null,null,null,null,null,null,null,null,null,null,null,null,null,null,null,null,null,null,null,null,null,null,null,null,null,null,null,null,"","（","）","","",""]
[null,null,null,"(ﾇ)身体障害者の数",null,null,null,null,null,null,null,null,{"$f":"(M26*2)+M28+M30+((M32+M34)*0.5)","v":0},null,null,null,null,null,null,null,"人",null,{"$f":"(W26*2)+W28+W30+((W32+W34)*0.5)","v":0},null,null,null,null,null,null,null,"人",null,null,{"$f":"(AH26*2)+AH28+AH30+((AH32+AH34)*0.5)","v":0},null,null,null,null,null,null,null,null,"人",null,{"$f":"(AS26*2)+AS28+AS30+((AS32+AS34)*0.5)","v":0},null,null,null,null,null,null,null,null,"人",null,null,{"$f":"(BE26*2)+BE28+BE30+((BE32+BE34)*0.5)","v":0},null,null,null,null,null,null,null,"人",null,null,null,null,null,null,null,null,null,null,null,null,null,null,null,null,null,null,null,null,null,null,null,null,null,null,null,null,null,null,null,null,null,null,null,null,null,null,null,null,null,null,null,null,null,null,null,"0","","人","","",""]
[null,null,null,"  ［(ﾎ×2)+ﾍ+ﾄ+((ﾁ+ﾘ)×0.5)］",null,null,null,null,null,null,null,"（",{"$f":"(M27*2)+M29+M31+((M33+M35)*0.5)","v":0},null,null,null,null,null,null,null,"）","（",{"$f":"(W27*2)+W29+W31+((W33+W35)*0.5)","v":0},null,null,null,null,null,null,null,"）",null,"（",{"$f":"(AH27*2)+AH29+AH31+((AH33+AH35)*0.5)","v":0},null,null,null,null,null,null,null,null,"）","（",{"$f":"(AS27*2)+AS29+AS31+((AS33+AS35)*0.5)","v":0},null,null,null,null,null,null,null,null,"）",null,"（",{"$f":"(BE27*2)+BE29+BE31+((BE33+BE35)*0.5)","v":0},null,null,null,null,null,null,null,"）",null,null,null,null,null,null,null,null,null,null,null,null,null,null,null,null,null,null,null,null,null,null,null,null,null,null,null,null,null,null,null,null,null,null,null,null,null,null,null,null,null,null,null,null,null,null,null,"0","（","）","","",""]
[null,null,null,"(ﾙ)重度知的障害者の数",null,null,null,null,null,null,null,null,null,null,null,null,null,null,null,null,"人",null,null,null,null,null,null,null,null,null,"人",null,null,null,null,null,null,null,null,null,null,null,"人",null,null,null,null,null,null,null,null,null,null,"人",null,null,null,null,null,null,null,null,null,null,"人",null,null,null,null,null,null,null,null,null,null,null,null,null,null,null,null,null,null,null,null,null,null,null,null,null,null,null,null,null,null,null,null,null,null,null,null,null,null,null,null,null,null,null,null,null,null,null,{"$f":"M38&\"\"","v":""},"","人","","",""]
[null,null,null,null,null,null,null,null,null,null,null,"（",null,null,null,null,null,null,null,null,"）","（",null,null,null,null,null,null,null,null,"）",null,"（",null,null,null,null,null,null,null,null,null,"）","（",null,null,null,null,null,null,null,null,null,"）",null,"（",null,null,null,null,null,null,null,null,"）",null,null,null,null,null,null,null,null,null,null,null,null,null,null,null,null,null,null,null,null,null,null,null,null,null,null,null,null,null,null,null,null,null,null,null,null,null,null,null,null,null,null,null,null,null,null,null,"","（","）","","",""]
[null,null,null,"(ｦ)重度知的障害者以外の\n   知的障害者の数",null,null,null,null,null,null,null,null,null,null,null,null,null,null,null,null,"人",null,null,null,null,null,null,null,null,null,"人",null,null,null,null,null,null,null,null,null,null,null,"人",null,null,null,null,null,null,null,null,null,null,"人",null,null,null,null,null,null,null,null,null,null,"人",null,null,null,null,null,null,null,null,null,null,null,null,null,null,null,null,null,null,null,null,null,null,null,null,null,null,null,null,null,null,null,null,null,null,null,null,null,null,null,null,null,null,null,null,null,null,null,{"$f":"M40&\"\"","v":""},"","人","","",""]
[null,null,null,null,null,null,null,null,null,null,null,"（",null,null,null,null,null,null,null,null,"）","（",null,null,null,null,null,null,null,null,"）",null,"（",null,null,null,null,null,null,null,null,null,"）","（",null,null,null,null,null,null,null,null,null,"）",null,"（",null,null,null,null,null,null,null,null,"）",null,null,null,null,null,null,null,null,null,null,null,null,null,null,null,null,null,null,null,null,null,null,null,null,null,null,null,null,null,null,null,null,null,null,null,null,null,null,null,null,null,null,null,null,null,null,null,"","（","）","","",""]
[null,null,null,"(ﾜ)重度知的障害者である\n   短時間労働者の数",null,null,null,null,null,null,null,null,null,null,null,null,null,null,null,null,"人",null,null,null,null,null,null,null,null,null,"人",null,null,null,null,null,null,null,null,null,null,null,"人",null,null,null,null,null,null,null,null,null,null,"人",null,null,null,null,null,null,null,null,null,null,"人",null,null,null,null,null,null,null,null,null,null,null,null,null,null,null,null,null,null,null,null,null,null,null,null,null,null,null,null,null,null,null,null,null,null,null,null,null,null,null,null,null,null,null,null,null,null,null,{"$f":"M42&\"\"","v":""},"","人","","",""]
[null,null,null,null,null,null,null,null,null,null,null,"（",null,null,null,null,null,null,null,null,"）","（",null,null,null,null,null,null,null,null,"）",null,"（",null,null,null,null,null,null,null,null,null,"）","（",null,null,null,null,null,null,null,null,null,"）",null,"（",null,null,null,null,null,null,null,null,"）",null,null,null,null,null,null,null,null,null,null,null,null,null,null,null,null,null,null,null,null,null,null,null,null,null,null,null,null,null,null,null,null,null,null,null,null,null,null,null,null,null,null,null,null,null,null,null,"","（","）","","",""]
[null,null,null,"(ｶ)重度知的障害者以外の知的障害\n   者である短時間労働者の数",null,null,null,null,null,null,null,null,null,null,null,null,null,null,null,null,"人",null,null,null,null,null,null,null,null,null,"人",null,null,null,null,null,null,null,null,null,null,null,"人",null,null,null,null,null,null,null,null,null,null,"人",null,null,null,null,null,null,null,null,null,null,"人",null,null,null,null,null,null,null,null,null,null,null,null,null,null,null,null,null,null,null,null,null,null,null,null,null,null,null,null,null,null,null,null,null,null,null,null,null,null,null,null,null,null,null,null,null,null,null,{"$f":"M44&\"\"","v":""},{"$f":"V44&\"\"","v":""},{"$f":"AE44&\"\"","v":"人"},{"$f":"AN44&\"\"","v":""},{"$f":"AW44&\"\"","v":""},{"$f":"BF44&\"\"","v":""}]
[null,null,null,null,null,null,null,null,null,null,null,"（",null,null,null,null,null,null,null,null,"）","（",null,null,null,null,null,null,null,null,"）",null,"（",null,null,null,null,null,null,null,null,null,"）","（",null,null,null,null,null,null,null,null,null,"）",null,"（",null,null,null,null,null,null,null,null,"）",null,null,null,null,null,null,null,null,null,null,null,null,null,null,null,null,null,null,null,null,null,null,null,null,null,null,null,null,null,null,null,null,null,null,null,null,null,null,null,null,null,null,null,null,null,null,null,{"$f":"M45&\"\"","v":""},"（","）","","",""]
[null,null,null,"(ﾖ)重度知的障害者である\n   特定短時間労働者の数",null,null,null,null,null,null,null,null,null,null,null,null,null,null,null,null,"人",null,null,null,null,null,null,null,null,null,"人",null,null,null,null,null,null,null,null,null,null,null,"人",null,null,null,null,null,null,null,null,null,null,"人",null,null,null,null,null,null,null,null,null,null,"人",null,null,null,null,null,null,null,null,null,null,null,null,null,null,null,null,null,null,null,null,null,null,null,null,null,null,null,null,null,null,null,null,null,null,null,null,null,null,null,null,null,null,null,null,null,null,null,{"$f":"M46&\"\"","v":""},"","人","","",""]
[null,null,null,null,null,null,null,null,null,null,null,"（",null,null,null,null,null,null,null,null,"）","（",null,null,null,null,null,null,null,null,"）",null,"（",null,null,null,null,null,null,null,null,null,"）","（",null,null,null,null,null,null,null,null,null,"）",null,"（",null,null,null,null,null,null,null,null,"）",null,null,null,null,null,null,null,null,null,null,null,null,null,null,null,null,null,null,null,null,null,null,null,null,null,null,null,null,null,null,null,null,null,null,null,null,null,null,null,null,null,null,null,null,null,null,null,"","（","）","","",""]
[null,null,null,"(ﾀ)知的障害者の数",null,null,null,null,null,null,null,null,{"$f":"(M38*2)+M40+M42+((M44+M46)*0.5)","v":0},null,null,null,null,null,null,null,"人",null,{"$f":"(W38*2)+W40+W42+((W44+W46)*0.5)","v":0},null,null,null,null,null,null,null,"人",null,null,{"$f":"(AH38*2)+AH40+AH42+((AH44+AH46)*0.5)","v":0},null,null,null,null,null,null,null,null,"人",null,{"$f":"(AS38*2)+AS40+AS42+((AS44+AS46)*0.5)","v":0},null,null,null,null,null,null,null,null,"人",null,null,{"$f":"(BE38*2)+BE40+BE42+((BE44+BE46)*0.5)","v":0},null,null,null,null,null,null,null,"人",null,null,null,null,null,null,null,null,null,null,null,null,null,null,null,null,null,null,null,null,null,null,null,null,null,null,null,null,null,null,null,null,null,null,null,null,null,null,null,null,null,null,null,null,null,null,null,{"$f":"M48&\"\"","v":"0"},"","人","","",""]
[null,null,null,"  ［(ﾙ×2)+ｦ+ﾜ+((ｶ+ﾖ)×0.5)］",null,null,null,null,null,null,null,"（",{"$f":"(M39*2)+M41+M43+((M45+M47)*0.5)","v":0},null,null,null,null,null,null,null,"）","（",{"$f":"(W39*2)+W41+W43+((W45+W47)*0.5)","v":0},null,null,null,null,null,null,null,"）",null,"（",{"$f":"(AH39*2)+AH41+AH43+((AH45+AH47)*0.5)","v":0},null,null,null,null,null,null,null,null,"）","（",{"$f":"(AS39*2)+AS41+AS43+((AS45+AS47)*0.5)","v":0},null,null,null,null,null,null,null,null,"）",null,"（",{"$f":"(BE39*2)+BE41+BE43+((BE45+BE47)*0.5)","v":0},null,null,null,null,null,null,null,"）",null,null,null,null,null,null,null,null,null,null,null,null,null,null,null,null,null,null,null,null,null,null,null,null,null,null,null,null,null,null,null,null,null,null,null,null,null,null,null,null,null,null,null,null,null,null,null,"0","（","）","","",""]
[null,null,null,"(ﾚ)精神障害者の数",null,null,null,null,null,null,null,null,null,null,null,null,null,null,null,null,"人",null,null,null,null,null,null,null,null,null,"人",null,null,null,null,null,null,null,null,null,null,null,"人",null,null,null,null,null,null,null,null,null,null,"人",null,null,null,null,null,null,null,null,null,null,"人",null,null,null,null,null,null,null,null,null,null,null,null,null,null,null,null,null,null,null,null,null,null,null,null,null,null,null,null,null,null,null,null,null,null,null,null,null,null,null,null,null,null,null,null,null,null,null,{"$f":"M50&\"\"","v":""},{"$f":"V50&\"\"","v":""},{"$f":"AE50&\"\"","v":"人"},{"$f":"AN50&\"\"","v":""},{"$f":"AW50&\"\"","v":""},{"$f":"BF50&\"\"","v":""}]
[null,null,null,null,null,null,null,null,null,null,null,"（",null,null,null,null,null,null,null,null,"）","（",null,null,null,null,null,null,null,null,"）",null,"（",null,null,null,null,null,null,null,null,null,"）","（",null,null,null,null,null,null,null,null,null,"）",null,"（",null,null,null,null,null,null,null,null,"）",null,null,null,null,null,null,null,null,null,null,null,null,null,null,null,null,null,null,null,null,null,null,null,null,null,null,null,null,null,null,null,null,null,null,null,null,null,null,null,null,null,null,null,null,null,null,null,{"$f":"M51&\"\"","v":""},{"$f":"V51&\"\"","v":"（"},{"$f":"AE51&\"\"","v":"）"},{"$f":"AN51&\"\"","v":""},{"$f":"AW51&\"\"","v":""},{"$f":"BF51&\"\"","v":""}]
[null,null,null,"(ｿ)精神障害者である\n   短時間労働者の数",null,null,null,null,null,null,null,null,null,null,null,null,null,null,null,null,"人",null,null,null,null,null,null,null,null,null,"人",null,null,null,null,null,null,null,null,null,null,null,"人",null,null,null,null,null,null,null,null,null,null,"人",null,null,null,null,null,null,null,null,null,null,"人",null,null,null,null,null,null,null,null,null,null,null,null,null,null,null,null,null,null,null,null,null,null,null,null,null,null,null,null,null,null,null,null,null,null,null,null,null,null,null,null,null,null,null,null,null,null,null,{"$f":"M52&\"\"","v":""},"","人","","",""]
[null,null,null,null,null,null,null,null,null,null,null,"（",null,null,null,null,null,null,null,null,"）","（",null,null,null,null,null,null,null,null,"）",null,"（",null,null,null,null,null,null,null,null,null,"）","（",null,null,null,null,null,null,null,null,null,"）",null,"（",null,null,null,null,null,null,null,null,"）",null,null,null,null,null,null,null,null,null,null,null,null,null,null,null,null,null,null,null,null,null,null,null,null,null,null,null,null,null,null,null,null,null,null,null,null,null,null,null,null,null,null,null,null,null,null,null,"","（","）","","",""]
[null,null,null,"(ﾂ)精神障害者である\n   特定短時間労働者の数",null,null,null,null,null,null,null,null,null,null,null,null,null,null,null,null,"人",null,null,null,null,null,null,null,null,null,"人",null,null,null,null,null,null,null,null,null,null,null,"人",null,null,null,null,null,null,null,null,null,null,"人",null,null,null,null,null,null,null,null,null,null,"人",null,null,null,null,null,null,null,null,null,null,null,null,null,null,null,null,null,null,null,null,null,null,null,null,null,null,null,null,null,null,null,null,null,null,null,null,null,null,null,null,null,null,null,null,null,null,null,{"$f":"M54&\"\"","v":""},{"$f":"V54&\"\"","v":""},{"$f":"AE54&\"\"","v":"人"},{"$f":"AN54&\"\"","v":""},{"$f":"AW54&\"\"","v":""},{"$f":"BF54&\"\"","v":""}]
[null,null,null,null,null,null,null,null,null,null,null,"（",null,null,null,null,null,null,null,null,"）","（",null,null,null,null,null,null,null,null,"）",null,"（",null,null,null,null,null,null,null,null,null,"）","（",null,null,null,null,null,null,null,null,null,"）",null,"（",null,null,null,null,null,null,null,null,"）",null,null,null,null,null,null,null,null,null,null,null,null,null,null,null,null,null,null,null,null,null,null,null,null,null,null,null,null,null,null,null,null,null,null,null,null,null,null,null,null,null,null,null,null,null,null,null,{"$f":"M55&\"\"","v":""},"（","）","","",""]
[null,null,null,"(ﾈ)精神障害者の数",null,null,null,null,null,null,null,null,{"$f":"M50+M52+M54*0.5","v":0},null,null,null,null,null,null,null,"人",null,{"$f":"W50+W52+W54*0.5","v":0},null,null,null,null,null,null,null,"人",null,null,{"$f":"AH50+AH52+AH54*0.5","v":0},null,null,null,null,null,null,null,null,"人",null,{"$f":"AS50+AS52+AS54*0.5","v":0},null,null,null,null,null,null,null,null,"人",null,null,{"$f":"BE50+BE52+BE54*0.5","v":0},null,null,null,null,null,null,null,"人",null,null,null,null,null,null,null,null,null,null,null,null,null,null,null,null,null,null,null,null,null,null,null,null,null,null,null,null,null,null,null,null,null,null,null,null,null,null,null,null,null,null,null,null,null,null,null,{"$f":"M56&\"\"","v":"0"},"","人","","",""]
[null,null,null,"　［ﾚ+ｿ+(ﾂ×0.5)］",null,null,null,null,null,null,null,"（",{"$f":"M51+M53+M55*0.5","v":0},null,null,null,null,null,null,null,"）","（",{"$f":"W51+W53+W55*0.5","v":0},null,null,null,null,null,null,null,"）",null,"（",{"$f":"AH51+AH53+AH55*0.5","v":0},null,null,null,null,null,null,null,null,"）","（",{"$f":"AS51+AS53+AS55*0.5","v":0},null,null,null,null,null,null,null,null,"）",null,"（",{"$f":"BE51+BE53+BE55*0.5","v":0},null,null,null,null,null,null,null,"）",null,null,null,null,null,null,null,null,null,null,null,null,null,null,null,null,null,null,null,null,null,null,null,null,null,null,null,null,null,null,null,null,null,null,null,null,null,null,null,null,null,null,null,null,null,null,null,"0","（","）","","",""]
[null,null,"(11)　　　     計",null,null,null,null,null,null,null,null,null,{"$f":"M36+M48+M56","v":0},null,null,null,null,null,null,null,"人",null,{"$f":"W36+W48+W56","v":0},null,null,null,null,null,null,null,"人",null,null,{"$f":"AH36+AH48+AH56","v":0},null,null,null,null,null,null,null,null,"人",null,{"$f":"AS36+AS48+AS56","v":0},null,null,null,null,null,null,null,null,"人",null,null,{"$f":"BE36+BE48+BE56","v":0},null,null,null,null,null,null,null,"人",null,null,null,null,null,null,null,null,null,null,null,null,null,null,null,null,null,null,null,null,null,null,null,null,null,null,null,null,null,null,null,null,null,null,null,null,null,null,null,null,null,null,null,null,null,null,null,{"$f":"M58&\"\"","v":"0"},"","人","","",""]
[null,null,"  　［(10)のﾇ+(10)のﾀ+(10)のﾈ］",null,null,null,null,null,null,null,null,"（",{"$f":"M37+M49+M57","v":0},null,null,null,null,null,null,null,"）","（",{"$f":"W37+W49+W57","v":0},null,null,null,null,null,null,null,"）",null,"（",{"$f":"AH37+AH49+AH57","v":0},null,null,null,null,null,null,null,null,"）","（",{"$f":"AS37+AS49+AS57","v":0},null,null,null,null,null,null,null,null,"）",null,"（",{"$f":"BE37+BE49+BE57","v":0},null,null,null,null,null,null,null,"）",null,null,null,null,null,null,null,null,null,null,null,null,null,null,null,null,null,null,null,null,null,null,null,null,null,null,null,null,null,null,null,null,null,null,null,null,null,null,null,null,null,null,null,null,null,null,null,"0","（","）","","",""]
[null,"Ｄ　障害者の雇用の促進等に関する法律別表に掲げる種類別の身体障害者数"]
[null,"視覚障害者（第１号に該当する者）",null,null,null,null,null,null,null,null,null,null,null,null,null,null,null,null,null,null,"人",null,null,null,null,null,null,null,null,null,"人",null,null,null,null,null,null,null,null,null,null,null,"人",null,null,null,null,null,null,null,null,null,null,"人",null,null,null,null,null,null,null,null,null,null,"人"]
[null,"聴覚又は平衡機能障害者\n（第２号に該当する者）",null,null,null,null,null,null,null,null,null,null,null,null,null,null,null,null,null,null,"人",null,null,null,null,null,null,null,null,null,"人",null,null,null,null,null,null,null,null,null,null,null,"人",null,null,null,null,null,null,null,null,null,null,"人",null,null,null,null,null,null,null,null,null,null,"人"]
[null,"音声・言語・そしゃく機能障害者\n（第３号に該当する者）",null,null,null,null,null,null,null,null,null,null,null,null,null,null,null,null,null,null,"人",null,null,null,null,null,null,null,null,null,"人",null,null,null,null,null,null,null,null,null,null,null,"人",null,null,null,null,null,null,null,null,null,null,"人",null,null,null,null,null,null,null,null,null,null,"人"]
[null,"肢体不自由者（第４号に該当する者）",null,null,null,null,null,null,null,null,null,null,null,null,null,null,null,null,null,null,"人",null,null,null,null,null,null,null,null,null,"人",null,null,null,null,null,null,null,null,null,null,null,"人",null,null,null,null,null,null,null,null,null,null,"人",null,null,null,null,null,null,null,null,null,null,"人"]
[null,"内部障害者（第５号に該当する者）",null,null,null,null,null,null,null,null,null,null,null,null,null,null,null,null,null,null,"人",null,null,null,null,null,null,null,null,null,"人",null,null,null,null,null,null,null,null,null,null,null,"人",null,null,null,null,null,null,null,null,null,null,"人",null,null,null,null,null,null,null,null,null,null,"人"]
[]
[]
[]
[]
[]
[]
[null,""]